{"text_format":"1","workbook":"xlsx","n_sheets":2,"sheets":["RESULTADOS","VALORES"],"not_rendered":{"charts":1,"images":7,"macros":1,"external_links":0,"defined_names":3,"comments":1,"pivot_tables":0},"unopened":[],"bounds":{"document_bytes":16777216,"sheet_cells":100000,"rows_first":2000,"rows_last":500,"rows_between":2000,"halvings":0,"cell_chars":16384,"cell_head_chars":4096},"cells_cut":0,"cells_raw":0,"read":"whole","date_system":"1900"}

{"sheet":"RESULTADOS","index":0,"n_rows":310,"n_cols":46,"rows_kept":310,"cut":false,"hidden":false,"merged":[[31,45,61,45],[61,0,61,42],[55,0,55,40],[55,41,60,41],[55,42,60,42],[56,0,56,40],[57,0,57,40],[58,0,58,40],[59,0,59,40],[60,0,60,40],[31,0,34,1],[31,6,32,22],[31,23,34,23],[31,24,34,24],[31,25,34,25],[33,6,33,22],[54,0,54,13],[54,14,54,40],[54,41,54,42],[36,0,37,0],[36,1,36,40],[36,41,37,41],[36,42,37,42],[2,6,2,22],[0,6,1,22],[27,0,27,40],[0,23,3,23],[0,24,3,24],[0,25,3,25],[0,0,3,1],[30,0,30,42],[23,0,23,13],[23,14,23,40],[23,41,23,42],[5,42,6,42],[5,0,6,0],[24,42,29,42],[5,1,5,40],[28,0,28,40],[29,0,29,40],[24,0,24,40],[25,0,25,40],[26,0,26,40],[5,41,6,41],[24,41,29,41],[67,0,68,0],[67,1,67,40],[67,41,68,41],[67,42,68,42],[85,0,85,13],[85,14,85,40],[85,41,85,42],[62,0,65,1],[62,6,63,22],[62,23,65,23],[62,24,65,24],[62,25,65,25],[64,6,64,22],[116,0,116,13],[116,14,116,40],[116,41,116,42],[86,0,86,40],[86,41,91,41],[86,42,91,42],[87,0,87,40],[88,0,88,40],[89,0,89,40],[90,0,90,40],[91,0,91,40],[98,0,99,0],[98,1,98,40],[98,41,99,41],[98,42,99,42],[92,0,92,42],[93,0,96,1],[93,6,94,22],[93,23,96,23],[93,24,96,24],[93,25,96,25],[95,6,95,22],[123,0,123,42],[124,0,127,1],[124,6,125,22],[124,23,127,23],[124,24,127,24],[124,25,127,25],[126,6,126,22],[117,0,117,40],[117,41,122,41],[117,42,122,42],[118,0,118,40],[119,0,119,40],[120,0,120,40],[121,0,121,40],[122,0,122,40],[127,6,127,11],[127,12,127,22],[148,0,148,40],[148,41,153,41],[148,42,153,42],[149,0,149,40],[150,0,150,40],[151,0,151,40],[152,0,152,40],[153,0,153,40],[129,0,130,0],[129,1,129,40],[129,41,130,41],[129,42,130,42],[147,0,147,13],[147,14,147,40],[147,41,147,42],[154,0,154,42],[155,0,158,1],[155,6,156,22],[155,23,158,23],[155,24,158,24],[155,25,158,25],[157,6,157,22],[178,0,178,13],[178,14,178,40],[178,41,178,42],[158,6,158,11],[158,12,158,22],[191,0,192,0],[191,1,191,40],[191,41,192,41],[191,42,192,42],[209,0,209,13],[209,14,209,40],[209,41,209,42],[160,0,161,0],[160,1,160,40],[160,41,161,41],[160,42,161,42],[189,6,189,11],[189,12,189,22],[185,0,185,42],[186,0,189,1],[186,6,187,22],[186,23,189,23],[186,24,189,24],[186,25,189,25],[188,6,188,22],[179,0,179,40],[179,41,184,41],[179,42,184,42],[180,0,180,40],[240,0,240,13],[240,14,240,40],[240,41,240,42],[210,0,210,40],[210,41,215,41],[210,42,215,42],[211,0,211,40],[212,0,212,40],[213,0,213,40],[214,0,214,40],[215,0,215,40],[222,0,223,0],[222,1,222,40],[222,41,223,41],[222,42,223,42],[216,0,216,42],[217,0,220,1],[217,6,218,22],[217,23,220,23],[217,24,220,24],[217,25,220,25],[219,6,219,22],[220,6,220,11],[220,12,220,22],[241,0,241,40],[241,41,246,41],[241,42,246,42],[242,0,242,40],[243,0,243,40],[244,0,244,40],[245,0,245,40],[246,0,246,40],[251,6,251,11],[251,12,251,22],[253,0,254,0],[253,1,253,40],[253,41,254,41],[253,42,254,42],[271,0,271,13],[271,14,271,40],[271,41,271,42],[247,0,247,42],[248,0,251,1],[248,6,249,22],[248,23,251,23],[248,24,251,24],[248,25,251,25],[250,6,250,22],[284,0,285,0],[284,1,284,40],[284,41,285,41],[284,42,285,42],[278,0,278,42],[279,0,282,1],[279,6,280,22],[279,23,282,23],[279,24,282,24],[279,25,282,25],[281,6,281,22],[282,6,282,11],[282,12,282,22],[181,0,181,40],[182,0,182,40],[183,0,183,40],[184,0,184,40],[309,0,309,42],[303,0,303,40],[303,41,308,41],[303,42,308,42],[304,0,304,40],[305,0,305,40],[306,0,306,40],[307,0,307,40],[308,0,308,40],[302,0,302,13],[302,14,302,40],[302,41,302,42],[272,0,272,40],[272,41,277,41],[272,42,277,42],[273,0,273,40],[274,0,274,40],[275,0,275,40],[276,0,276,40],[277,0,277,40]]}
[null,null,null,null,null,null,"Encuesta de Satisfacción de Usuario"]
[]
[null,null,null,null,null,null,"Lógica Borrosa"]
[null,null,null,null,null,null,"Encuestas del Proceso: Prácticas de laboratorio del Nivel Medio Superior"]
[]
["NO. DE PREG.","EQUIVALE AL NÚMERO DE ENCUESTAS REALIZADAS ",null,null,null,null,null,null,null,null,null,null,null,null,null,null,null,null,null,null,null,null,null,null,null,null,null,null,null,null,null,null,null,null,null,null,null,null,null,null,null,"PRO- MEDIO Secc.","VALOR REAL"]
[null,1,2,3,4,5,6,7,8,9,10,11,12,13,14,15,16,17,18,19,20,21,22,23,24,25,26,27,28,29,30,31,32,33,34,35,36,37,38,39,40]
[1,null,null,null,null,null,null,null,null,null,null,null,null,null,null,null,null,null,null,null,null,null,null,null,null,null,null,null,null,null,null,null,null,null,null,null,null,null,null,null,null,{"$f":"AVERAGE(B8:AO8)","v":{"$error":"#DIV/0!"}},{"$f":"AVERAGE(B$8:AO$8,B$39:AO$39,B$70:AO$70,B$101:AO$101,B$132:AO$132,B$163:AO$163,B$194:AO$194,B$225:AO$225,B$256:AO$256,B$287:AO$287)","v":{"$error":"#DIV/0!"}}]
[2,null,null,null,null,null,null,null,null,null,null,null,null,null,null,null,null,null,null,null,null,null,null,null,null,null,null,null,null,null,null,null,null,null,null,null,null,null,null,null,null,{"$f":"AVERAGE(B9:AO9)","v":{"$error":"#DIV/0!"}},{"$f":"AVERAGE(B$9:AO$9,B$40:AO$40,B$71:AO$71,B$102:AO$102,B$133:AO$133,B$164:AO$164,B$195:AO$195,B$226:AO$226,B$257:AO$257,B$288:AO$288)","v":{"$error":"#DIV/0!"}}]
[3,null,null,null,null,null,null,null,null,null,null,null,null,null,null,null,null,null,null,null,null,null,null,null,null,null,null,null,null,null,null,null,null,null,null,null,null,null,null,null,null,{"$error":"#DIV/0!"},{"$f":"AVERAGE(B$10:AO$10,B$41:AO$41,B$72:AO$72,B$103:AO$103,B$134:AO$134,B$165:AO$165,B$196:AO$196,B$227:AO$227,B$258:AO$258,B$289:AO$289)","v":{"$error":"#DIV/0!"}}]
[4,null,null,null,null,null,null,null,null,null,null,null,null,null,null,null,null,null,null,null,null,null,null,null,null,null,null,null,null,null,null,null,null,null,null,null,null,null,null,null,null,{"$error":"#DIV/0!"},{"$f":"AVERAGE(B$11:AO$11,B$42:AO$42,B$73:AO$73,B$104:AO$104,B$135:AO$135,B$166:AO$166,B$197:AO$197,B$228:AO$228,B$259:AO$259,B$290:AO$290)","v":{"$error":"#DIV/0!"}}]
[5,null,null,null,null,null,null,null,null,null,null,null,null,null,null,null,null,null,null,null,null,null,null,null,null,null,null,null,null,null,null,null,null,null,null,null,null,null,null,null,null,{"$error":"#DIV/0!"},{"$f":"AVERAGE(B$12:AO$12,B$43:AO$43,B$74:AO$74,B$105:AO$105,B$136:AO$136,B$167:AO$167,B$198:AO$198,B$229:AO$229,B$260:AO$260,B$291:AO$291)","v":{"$error":"#DIV/0!"}}]
[6,null,null,null,null,null,null,null,null,null,null,null,null,null,null,null,null,null,null,null,null,null,null,null,null,null,null,null,null,null,null,null,null,null,null,null,null,null,null,null,null,{"$error":"#DIV/0!"},{"$f":"AVERAGE(B$13:AO$13,B$44:AO$44,B$75:AO$75,B$106:AO$106,B$137:AO$137,B$168:AO$168,B$199:AO$199,B$230:AO$230,B$261:AO$261,B$292:AO$292)","v":{"$error":"#DIV/0!"}}]
[7,null,null,null,null,null,null,null,null,null,null,null,null,null,null,null,null,null,null,null,null,null,null,null,null,null,null,null,null,null,null,null,null,null,null,null,null,null,null,null,null,{"$error":"#DIV/0!"},{"$f":"AVERAGE(B$14:AO$14,B$45:AO$45,B$76:AO$76,B$107:AO$107,B$138:AO$138,B$169:AO$169,B$200:AO$200,B$231:AO$231,B$262:AO$262,B$293:AO$293)","v":{"$error":"#DIV/0!"}}]
[8,null,null,null,null,null,null,null,null,null,null,null,null,null,null,null,null,null,null,null,null,null,null,null,null,null,null,null,null,null,null,null,null,null,null,null,null,null,null,null,null,{"$error":"#DIV/0!"},{"$f":"AVERAGE(B$15:AO$15,B$46:AO$46,B$77:AO$77,B$108:AO$108,B$139:AO$139,B$170:AO$170,B$201:AO$201,B$232:AO$232,B$263:AO$263,B$294:AO$294)","v":{"$error":"#DIV/0!"}}]
[9,null,null,null,null,null,null,null,null,null,null,null,null,null,null,null,null,null,null,null,null,null,null,null,null,null,null,null,null,null,null,null,null,null,null,null,null,null,null,null,null,{"$error":"#DIV/0!"},{"$f":"AVERAGE(B$16:AO$16,B$47:AO$47,B$78:AO$78,B$109:AO$109,B$140:AO$140,B$171:AO$171,B$202:AO$202,B$233:AO$233,B$264:AO$264,B$295:AO$295)","v":{"$error":"#DIV/0!"}}]
[10,null,null,null,null,null,null,null,null,null,null,null,null,null,null,null,null,null,null,null,null,null,null,null,null,null,null,null,null,null,null,null,null,null,null,null,null,null,null,null,null,{"$error":"#DIV/0!"},{"$f":"AVERAGE(B$17:AO$17,B$48:AO$48,B$79:AO$79,B$110:AO$110,B$141:AO$141,B$172:AO$172,B$203:AO$203,B$234:AO$234,B$265:AO$265,B$296:AO$296)","v":{"$error":"#DIV/0!"}}]
[11,null,null,null,null,null,null,null,null,null,null,null,null,null,null,null,null,null,null,null,null,null,null,null,null,null,null,null,null,null,null,null,null,null,null,null,null,null,null,null,null,{"$error":"#DIV/0!"},{"$f":"AVERAGE(B$18:AO$18,B$49:AO$49,B$80:AO$80,B$111:AO$111,B$142:AO$142,B$173:AO$173,B$204:AO$204,B$235:AO$235,B$266:AO$266,B$297:AO$297)","v":{"$error":"#DIV/0!"}}]
[12,null,null,null,null,null,null,null,null,null,null,null,null,null,null,null,null,null,null,null,null,null,null,null,null,null,null,null,null,null,null,null,null,null,null,null,null,null,null,null,null,{"$error":"#DIV/0!"},{"$f":"AVERAGE(B$19:AO$19,B$50:AO$50,B$81:AO$81,B$112:AO$112,B$143:AO$143,B$174:AO$174,B$205:AO$205,B$236:AO$236,B$267:AO$267,B$298:AO$298)","v":{"$error":"#DIV/0!"}}]
[13,null,null,null,null,null,null,null,null,null,null,null,null,null,null,null,null,null,null,null,null,null,null,null,null,null,null,null,null,null,null,null,null,null,null,null,null,null,null,null,null,{"$error":"#DIV/0!"},{"$f":"AVERAGE(B$20:AO$20,B$51:AO$51,B$82:AO$82,B$113:AO$113,B$144:AO$144,B$175:AO$175,B$206:AO$206,B$237:AO$237,B$268:AO$268,B$299:AO$299)","v":{"$error":"#DIV/0!"}}]
[14,null,null,null,null,null,null,null,null,null,null,null,null,null,null,null,null,null,null,null,null,null,null,null,null,null,null,null,null,null,null,null,null,null,null,null,null,null,null,null,null,{"$error":"#DIV/0!"},{"$f":"AVERAGE(B$21:AO$21,B$52:AO$52,B$83:AO$83,B$114:AO$114,B$145:AO$145,B$176:AO$176,B$207:AO$207,B$238:AO$238,B$269:AO$269,B$300:AO$300)","v":{"$error":"#DIV/0!"}}]
[15,null,null,null,null,null,null,null,null,null,null,null,null,null,null,null,null,null,null,null,null,null,null,null,null,null,null,null,null,null,null,null,null,null,null,null,null,null,null,null,null,{"$error":"#DIV/0!"},{"$f":"AVERAGE(B$22:AO$22,B$53:AO$53,B$84:AO$84,B$115:AO$115,B$146:AO$146,B$177:AO$177,B$208:AO$208,B$239:AO$239,B$270:AO$270,B$301:AO$301)","v":{"$error":"#DIV/0!"}}]
[]
["RECOMENDACIONES, QUEJAS, SUGERENCIAS, FELICITACIONES:"]
[]
[]
[]
[]
[]
[]
["1 / ?"]
[null,null,null,null,null,null,"Encuesta de Satisfacción de Usuario",null,null,null,null,null,null,null,null,null,null,null,null,null,null,null,null,null,null,null,null,null,null,null,null,null,null,null,null,null,null,null,null,null,null,null,null,null,null,"Seleccione esta sección y agreguela al área de impresión si desea imprimirla"]
[]
[null,null,null,null,null,null,"Lógica Borrosa"]
[null,null,null,null,null,null,"Encuestas del Proceso: Prácticas de laboratorio del Nivel Medio Superior"]
[]
["NO. DE PREG.","EQUIVALE AL NÚMERO DE ENCUESTAS REALIZADAS ",null,null,null,null,null,null,null,null,null,null,null,null,null,null,null,null,null,null,null,null,null,null,null,null,null,null,null,null,null,null,null,null,null,null,null,null,null,null,null,"PRO- MEDIO Secc.","PRO- MEDIO Gral."]
[null,41,42,43,44,45,46,47,48,49,50,51,52,53,54,55,56,57,58,59,60,61,62,63,64,65,66,67,68,69,70,71,72,73,74,75,76,77,78,79,80]
[1,null,null,null,null,null,null,null,null,null,null,null,null,null,null,null,null,null,null,null,null,null,null,null,null,null,null,null,null,null,null,null,null,null,null,null,null,null,null,null,null,{"$f":"AVERAGE(B39:AO39)","v":{"$error":"#DIV/0!"}},{"$f":"AVERAGE(B$8:AO$8,B$39:AO$39,B$70:AO$70,B$101:AO$101,B$132:AO$132,B$163:AO$163,B$194:AO$194,B$225:AO$225,B$256:AO$256,B$287:AO$287)","v":{"$error":"#DIV/0!"}}]
[2,null,null,null,null,null,null,null,null,null,null,null,null,null,null,null,null,null,null,null,null,null,null,null,null,null,null,null,null,null,null,null,null,null,null,null,null,null,null,null,null,{"$f":"AVERAGE(B40:AO40)","v":{"$error":"#DIV/0!"}},{"$f":"AVERAGE(B$9:AO$9,B$40:AO$40,B$71:AO$71,B$102:AO$102,B$133:AO$133,B$164:AO$164,B$195:AO$195,B$226:AO$226,B$257:AO$257,B$288:AO$288)","v":{"$error":"#DIV/0!"}}]
[3,null,null,null,null,null,null,null,null,null,null,null,null,null,null,null,null,null,null,null,null,null,null,null,null,null,null,null,null,null,null,null,null,null,null,null,null,null,null,null,null,{"$error":"#DIV/0!"},{"$f":"AVERAGE(B$10:AO$10,B$41:AO$41,B$72:AO$72,B$103:AO$103,B$134:AO$134,B$165:AO$165,B$196:AO$196,B$227:AO$227,B$258:AO$258,B$289:AO$289)","v":{"$error":"#DIV/0!"}}]
[4,null,null,null,null,null,null,null,null,null,null,null,null,null,null,null,null,null,null,null,null,null,null,null,null,null,null,null,null,null,null,null,null,null,null,null,null,null,null,null,null,{"$error":"#DIV/0!"},{"$f":"AVERAGE(B$11:AO$11,B$42:AO$42,B$73:AO$73,B$104:AO$104,B$135:AO$135,B$166:AO$166,B$197:AO$197,B$228:AO$228,B$259:AO$259,B$290:AO$290)","v":{"$error":"#DIV/0!"}}]
[5,null,null,null,null,null,null,null,null,null,null,null,null,null,null,null,null,null,null,null,null,null,null,null,null,null,null,null,null,null,null,null,null,null,null,null,null,null,null,null,null,{"$error":"#DIV/0!"},{"$f":"AVERAGE(B$12:AO$12,B$43:AO$43,B$74:AO$74,B$105:AO$105,B$136:AO$136,B$167:AO$167,B$198:AO$198,B$229:AO$229,B$260:AO$260,B$291:AO$291)","v":{"$error":"#DIV/0!"}}]
[6,null,null,null,null,null,null,null,null,null,null,null,null,null,null,null,null,null,null,null,null,null,null,null,null,null,null,null,null,null,null,null,null,null,null,null,null,null,null,null,null,{"$error":"#DIV/0!"},{"$f":"AVERAGE(B$13:AO$13,B$44:AO$44,B$75:AO$75,B$106:AO$106,B$137:AO$137,B$168:AO$168,B$199:AO$199,B$230:AO$230,B$261:AO$261,B$292:AO$292)","v":{"$error":"#DIV/0!"}}]
[7,null,null,null,null,null,null,null,null,null,null,null,null,null,null,null,null,null,null,null,null,null,null,null,null,null,null,null,null,null,null,null,null,null,null,null,null,null,null,null,null,{"$error":"#DIV/0!"},{"$f":"AVERAGE(B$14:AO$14,B$45:AO$45,B$76:AO$76,B$107:AO$107,B$138:AO$138,B$169:AO$169,B$200:AO$200,B$231:AO$231,B$262:AO$262,B$293:AO$293)","v":{"$error":"#DIV/0!"}}]
[8,null,null,null,null,null,null,null,null,null,null,null,null,null,null,null,null,null,null,null,null,null,null,null,null,null,null,null,null,null,null,null,null,null,null,null,null,null,null,null,null,{"$error":"#DIV/0!"},{"$f":"AVERAGE(B$15:AO$15,B$46:AO$46,B$77:AO$77,B$108:AO$108,B$139:AO$139,B$170:AO$170,B$201:AO$201,B$232:AO$232,B$263:AO$263,B$294:AO$294)","v":{"$error":"#DIV/0!"}}]
[9,null,null,null,null,null,null,null,null,null,null,null,null,null,null,null,null,null,null,null,null,null,null,null,null,null,null,null,null,null,null,null,null,null,null,null,null,null,null,null,null,{"$error":"#DIV/0!"},{"$f":"AVERAGE(B$16:AO$16,B$47:AO$47,B$78:AO$78,B$109:AO$109,B$140:AO$140,B$171:AO$171,B$202:AO$202,B$233:AO$233,B$264:AO$264,B$295:AO$295)","v":{"$error":"#DIV/0!"}}]
[10,null,null,null,null,null,null,null,null,null,null,null,null,null,null,null,null,null,null,null,null,null,null,null,null,null,null,null,null,null,null,null,null,null,null,null,null,null,null,null,null,{"$error":"#DIV/0!"},{"$f":"AVERAGE(B$17:AO$17,B$48:AO$48,B$79:AO$79,B$110:AO$110,B$141:AO$141,B$172:AO$172,B$203:AO$203,B$234:AO$234,B$265:AO$265,B$296:AO$296)","v":{"$error":"#DIV/0!"}}]
[11,null,null,null,null,null,null,null,null,null,null,null,null,null,null,null,null,null,null,null,null,null,null,null,null,null,null,null,null,null,null,null,null,null,null,null,null,null,null,null,null,{"$error":"#DIV/0!"},{"$f":"AVERAGE(B$18:AO$18,B$49:AO$49,B$80:AO$80,B$111:AO$111,B$142:AO$142,B$173:AO$173,B$204:AO$204,B$235:AO$235,B$266:AO$266,B$297:AO$297)","v":{"$error":"#DIV/0!"}}]
[12,null,null,null,null,null,null,null,null,null,null,null,null,null,null,null,null,null,null,null,null,null,null,null,null,null,null,null,null,null,null,null,null,null,null,null,null,null,null,null,null,{"$error":"#DIV/0!"},{"$f":"AVERAGE(B$19:AO$19,B$50:AO$50,B$81:AO$81,B$112:AO$112,B$143:AO$143,B$174:AO$174,B$205:AO$205,B$236:AO$236,B$267:AO$267,B$298:AO$298)","v":{"$error":"#DIV/0!"}}]
[13,null,null,null,null,null,null,null,null,null,null,null,null,null,null,null,null,null,null,null,null,null,null,null,null,null,null,null,null,null,null,null,null,null,null,null,null,null,null,null,null,{"$error":"#DIV/0!"},{"$f":"AVERAGE(B$20:AO$20,B$51:AO$51,B$82:AO$82,B$113:AO$113,B$144:AO$144,B$175:AO$175,B$206:AO$206,B$237:AO$237,B$268:AO$268,B$299:AO$299)","v":{"$error":"#DIV/0!"}}]
[14,null,null,null,null,null,null,null,null,null,null,null,null,null,null,null,null,null,null,null,null,null,null,null,null,null,null,null,null,null,null,null,null,null,null,null,null,null,null,null,null,{"$error":"#DIV/0!"},{"$f":"AVERAGE(B$21:AO$21,B$52:AO$52,B$83:AO$83,B$114:AO$114,B$145:AO$145,B$176:AO$176,B$207:AO$207,B$238:AO$238,B$269:AO$269,B$300:AO$300)","v":{"$error":"#DIV/0!"}}]
[15,null,null,null,null,null,null,null,null,null,null,null,null,null,null,null,null,null,null,null,null,null,null,null,null,null,null,null,null,null,null,null,null,null,null,null,null,null,null,null,null,{"$error":"#DIV/0!"},{"$f":"AVERAGE(B$22:AO$22,B$53:AO$53,B$84:AO$84,B$115:AO$115,B$146:AO$146,B$177:AO$177,B$208:AO$208,B$239:AO$239,B$270:AO$270,B$301:AO$301)","v":{"$error":"#DIV/0!"}}]
[]
["RECOMENDACIONES, QUEJAS, SUGERENCIAS, FELICITACIONES:"]
[]
[]
[]
[]
[]
[]
["2 / ?"]
[null,null,null,null,null,null,"Encuesta de Satisfacción de Usuario"]
[]
[null,null,null,null,null,null,"Lógica Borrosa"]
[null,null,null,null,null,null,"Encuestas del Proceso: Prácticas de laboratorio del Nivel Medio Superior"]
[]
["NO. DE PREG.","EQUIVALE AL NÚMERO DE ENCUESTAS REALIZADAS ",null,null,null,null,null,null,null,null,null,null,null,null,null,null,null,null,null,null,null,null,null,null,null,null,null,null,null,null,null,null,null,null,null,null,null,null,null,null,null,"PRO- MEDIO Secc.","PRO- MEDIO Gral."]
[null,81,82,83,84,85,86,87,88,89,90,91,92,93,94,95,96,97,98,99,100,101,102,103,104,105,106,107,108,109,110,111,112,113,114,115,116,117,118,119,120]
[1,null,null,null,null,null,null,null,null,null,null,null,null,null,null,null,null,null,null,null,null,null,null,null,null,null,null,null,null,null,null,null,null,null,null,null,null,null,null,null,null,{"$f":"AVERAGE(B70:AO70)","v":{"$error":"#DIV/0!"}},{"$f":"AVERAGE(B$8:AO$8,B$39:AO$39,B$70:AO$70,B$101:AO$101,B$132:AO$132,B$163:AO$163,B$194:AO$194,B$225:AO$225,B$256:AO$256,B$287:AO$287)","v":{"$error":"#DIV/0!"}}]
[2,null,null,null,null,null,null,null,null,null,null,null,null,null,null,null,null,null,null,null,null,null,null,null,null,null,null,null,null,null,null,null,null,null,null,null,null,null,null,null,null,{"$f":"AVERAGE(B71:AO71)","v":{"$error":"#DIV/0!"}},{"$f":"AVERAGE(B$9:AO$9,B$40:AO$40,B$71:AO$71,B$102:AO$102,B$133:AO$133,B$164:AO$164,B$195:AO$195,B$226:AO$226,B$257:AO$257,B$288:AO$288)","v":{"$error":"#DIV/0!"}}]
[3,null,null,null,null,null,null,null,null,null,null,null,null,null,null,null,null,null,null,null,null,null,null,null,null,null,null,null,null,null,null,null,null,null,null,null,null,null,null,null,null,{"$error":"#DIV/0!"},{"$f":"AVERAGE(B$10:AO$10,B$41:AO$41,B$72:AO$72,B$103:AO$103,B$134:AO$134,B$165:AO$165,B$196:AO$196,B$227:AO$227,B$258:AO$258,B$289:AO$289)","v":{"$error":"#DIV/0!"}}]
[4,null,null,null,null,null,null,null,null,null,null,null,null,null,null,null,null,null,null,null,null,null,null,null,null,null,null,null,null,null,null,null,null,null,null,null,null,null,null,null,null,{"$error":"#DIV/0!"},{"$f":"AVERAGE(B$11:AO$11,B$42:AO$42,B$73:AO$73,B$104:AO$104,B$135:AO$135,B$166:AO$166,B$197:AO$197,B$228:AO$228,B$259:AO$259,B$290:AO$290)","v":{"$error":"#DIV/0!"}}]
[5,null,null,null,null,null,null,null,null,null,null,null,null,null,null,null,null,null,null,null,null,null,null,null,null,null,null,null,null,null,null,null,null,null,null,null,null,null,null,null,null,{"$error":"#DIV/0!"},{"$f":"AVERAGE(B$12:AO$12,B$43:AO$43,B$74:AO$74,B$105:AO$105,B$136:AO$136,B$167:AO$167,B$198:AO$198,B$229:AO$229,B$260:AO$260,B$291:AO$291)","v":{"$error":"#DIV/0!"}}]
[6,null,null,null,null,null,null,null,null,null,null,null,null,null,null,null,null,null,null,null,null,null,null,null,null,null,null,null,null,null,null,null,null,null,null,null,null,null,null,null,null,{"$error":"#DIV/0!"},{"$f":"AVERAGE(B$13:AO$13,B$44:AO$44,B$75:AO$75,B$106:AO$106,B$137:AO$137,B$168:AO$168,B$199:AO$199,B$230:AO$230,B$261:AO$261,B$292:AO$292)","v":{"$error":"#DIV/0!"}}]
[7,null,null,null,null,null,null,null,null,null,null,null,null,null,null,null,null,null,null,null,null,null,null,null,null,null,null,null,null,null,null,null,null,null,null,null,null,null,null,null,null,{"$error":"#DIV/0!"},{"$f":"AVERAGE(B$14:AO$14,B$45:AO$45,B$76:AO$76,B$107:AO$107,B$138:AO$138,B$169:AO$169,B$200:AO$200,B$231:AO$231,B$262:AO$262,B$293:AO$293)","v":{"$error":"#DIV/0!"}}]
[8,null,null,null,null,null,null,null,null,null,null,null,null,null,null,null,null,null,null,null,null,null,null,null,null,null,null,null,null,null,null,null,null,null,null,null,null,null,null,null,null,{"$error":"#DIV/0!"},{"$f":"AVERAGE(B$15:AO$15,B$46:AO$46,B$77:AO$77,B$108:AO$108,B$139:AO$139,B$170:AO$170,B$201:AO$201,B$232:AO$232,B$263:AO$263,B$294:AO$294)","v":{"$error":"#DIV/0!"}}]
[9,null,null,null,null,null,null,null,null,null,null,null,null,null,null,null,null,null,null,null,null,null,null,null,null,null,null,null,null,null,null,null,null,null,null,null,null,null,null,null,null,{"$error":"#DIV/0!"},{"$f":"AVERAGE(B$16:AO$16,B$47:AO$47,B$78:AO$78,B$109:AO$109,B$140:AO$140,B$171:AO$171,B$202:AO$202,B$233:AO$233,B$264:AO$264,B$295:AO$295)","v":{"$error":"#DIV/0!"}}]
[10,null,null,null,null,null,null,null,null,null,null,null,null,null,null,null,null,null,null,null,null,null,null,null,null,null,null,null,null,null,null,null,null,null,null,null,null,null,null,null,null,{"$error":"#DIV/0!"},{"$f":"AVERAGE(B$17:AO$17,B$48:AO$48,B$79:AO$79,B$110:AO$110,B$141:AO$141,B$172:AO$172,B$203:AO$203,B$234:AO$234,B$265:AO$265,B$296:AO$296)","v":{"$error":"#DIV/0!"}}]
[11,null,null,null,null,null,null,null,null,null,null,null,null,null,null,null,null,null,null,null,null,null,null,null,null,null,null,null,null,null,null,null,null,null,null,null,null,null,null,null,null,{"$error":"#DIV/0!"},{"$f":"AVERAGE(B$18:AO$18,B$49:AO$49,B$80:AO$80,B$111:AO$111,B$142:AO$142,B$173:AO$173,B$204:AO$204,B$235:AO$235,B$266:AO$266,B$297:AO$297)","v":{"$error":"#DIV/0!"}}]
[12,null,null,null,null,null,null,null,null,null,null,null,null,null,null,null,null,null,null,null,null,null,null,null,null,null,null,null,null,null,null,null,null,null,null,null,null,null,null,null,null,{"$error":"#DIV/0!"},{"$f":"AVERAGE(B$19:AO$19,B$50:AO$50,B$81:AO$81,B$112:AO$112,B$143:AO$143,B$174:AO$174,B$205:AO$205,B$236:AO$236,B$267:AO$267,B$298:AO$298)","v":{"$error":"#DIV/0!"}}]
[13,null,null,null,null,null,null,null,null,null,null,null,null,null,null,null,null,null,null,null,null,null,null,null,null,null,null,null,null,null,null,null,null,null,null,null,null,null,null,null,null,{"$error":"#DIV/0!"},{"$f":"AVERAGE(B$20:AO$20,B$51:AO$51,B$82:AO$82,B$113:AO$113,B$144:AO$144,B$175:AO$175,B$206:AO$206,B$237:AO$237,B$268:AO$268,B$299:AO$299)","v":{"$error":"#DIV/0!"}}]
[14,null,null,null,null,null,null,null,null,null,null,null,null,null,null,null,null,null,null,null,null,null,null,null,null,null,null,null,null,null,null,null,null,null,null,null,null,null,null,null,null,{"$error":"#DIV/0!"},{"$f":"AVERAGE(B$21:AO$21,B$52:AO$52,B$83:AO$83,B$114:AO$114,B$145:AO$145,B$176:AO$176,B$207:AO$207,B$238:AO$238,B$269:AO$269,B$300:AO$300)","v":{"$error":"#DIV/0!"}}]
[15,null,null,null,null,null,null,null,null,null,null,null,null,null,null,null,null,null,null,null,null,null,null,null,null,null,null,null,null,null,null,null,null,null,null,null,null,null,null,null,null,{"$error":"#DIV/0!"},{"$f":"AVERAGE(B$22:AO$22,B$53:AO$53,B$84:AO$84,B$115:AO$115,B$146:AO$146,B$177:AO$177,B$208:AO$208,B$239:AO$239,B$270:AO$270,B$301:AO$301)","v":{"$error":"#DIV/0!"}}]
[]
["RECOMENDACIONES, QUEJAS, SUGERENCIAS, FELICITACIONES:"]
[]
[]
[]
[]
[]
[]
["3 / ?"]
[null,null,null,null,null,null,"Encuesta de Satisfacción de Usuario"]
[]
[null,null,null,null,null,null,"Lógica Borrosa"]
[null,null,null,null,null,null,"Encuestas del Proceso: Prácticas de laboratorio del Nivel Medio Superior"]
[]
["NO. DE PREG.","EQUIVALE AL NÚMERO DE ENCUESTAS REALIZADAS ",null,null,null,null,null,null,null,null,null,null,null,null,null,null,null,null,null,null,null,null,null,null,null,null,null,null,null,null,null,null,null,null,null,null,null,null,null,null,null,"PRO- MEDIO Secc.","PRO- MEDIO Gral."]
[null,121,122,123,124,125,126,127,128,129,130,131,132,133,134,135,136,137,138,139,140,141,142,143,144,145,146,147,148,149,150,151,152,153,154,155,156,157,158,159,160]
[1,null,null,null,null,null,null,null,null,null,null,null,null,null,null,null,null,null,null,null,null,null,null,null,null,null,null,null,null,null,null,null,null,null,null,null,null,null,null,null,null,{"$f":"AVERAGE(B101:AO101)","v":{"$error":"#DIV/0!"}},{"$f":"AVERAGE(B$8:AO$8,B$39:AO$39,B$70:AO$70,B$101:AO$101,B$132:AO$132,B$163:AO$163,B$194:AO$194,B$225:AO$225,B$256:AO$256,B$287:AO$287)","v":{"$error":"#DIV/0!"}}]
[2,null,null,null,null,null,null,null,null,null,null,null,null,null,null,null,null,null,null,null,null,null,null,null,null,null,null,null,null,null,null,null,null,null,null,null,null,null,null,null,null,{"$f":"AVERAGE(B102:AO102)","v":{"$error":"#DIV/0!"}},{"$f":"AVERAGE(B$9:AO$9,B$40:AO$40,B$71:AO$71,B$102:AO$102,B$133:AO$133,B$164:AO$164,B$195:AO$195,B$226:AO$226,B$257:AO$257,B$288:AO$288)","v":{"$error":"#DIV/0!"}}]
[3,null,null,null,null,null,null,null,null,null,null,null,null,null,null,null,null,null,null,null,null,null,null,null,null,null,null,null,null,null,null,null,null,null,null,null,null,null,null,null,null,{"$error":"#DIV/0!"},{"$f":"AVERAGE(B$10:AO$10,B$41:AO$41,B$72:AO$72,B$103:AO$103,B$134:AO$134,B$165:AO$165,B$196:AO$196,B$227:AO$227,B$258:AO$258,B$289:AO$289)","v":{"$error":"#DIV/0!"}}]
[4,null,null,null,null,null,null,null,null,null,null,null,null,null,null,null,null,null,null,null,null,null,null,null,null,null,null,null,null,null,null,null,null,null,null,null,null,null,null,null,null,{"$error":"#DIV/0!"},{"$f":"AVERAGE(B$11:AO$11,B$42:AO$42,B$73:AO$73,B$104:AO$104,B$135:AO$135,B$166:AO$166,B$197:AO$197,B$228:AO$228,B$259:AO$259,B$290:AO$290)","v":{"$error":"#DIV/0!"}}]
[5,null,null,null,null,null,null,null,null,null,null,null,null,null,null,null,null,null,null,null,null,null,null,null,null,null,null,null,null,null,null,null,null,null,null,null,null,null,null,null,null,{"$error":"#DIV/0!"},{"$f":"AVERAGE(B$12:AO$12,B$43:AO$43,B$74:AO$74,B$105:AO$105,B$136:AO$136,B$167:AO$167,B$198:AO$198,B$229:AO$229,B$260:AO$260,B$291:AO$291)","v":{"$error":"#DIV/0!"}}]
[6,null,null,null,null,null,null,null,null,null,null,null,null,null,null,null,null,null,null,null,null,null,null,null,null,null,null,null,null,null,null,null,null,null,null,null,null,null,null,null,null,{"$error":"#DIV/0!"},{"$f":"AVERAGE(B$13:AO$13,B$44:AO$44,B$75:AO$75,B$106:AO$106,B$137:AO$137,B$168:AO$168,B$199:AO$199,B$230:AO$230,B$261:AO$261,B$292:AO$292)","v":{"$error":"#DIV/0!"}}]
[7,null,null,null,null,null,null,null,null,null,null,null,null,null,null,null,null,null,null,null,null,null,null,null,null,null,null,null,null,null,null,null,null,null,null,null,null,null,null,null,null,{"$error":"#DIV/0!"},{"$f":"AVERAGE(B$14:AO$14,B$45:AO$45,B$76:AO$76,B$107:AO$107,B$138:AO$138,B$169:AO$169,B$200:AO$200,B$231:AO$231,B$262:AO$262,B$293:AO$293)","v":{"$error":"#DIV/0!"}}]
[8,null,null,null,null,null,null,null,null,null,null,null,null,null,null,null,null,null,null,null,null,null,null,null,null,null,null,null,null,null,null,null,null,null,null,null,null,null,null,null,null,{"$error":"#DIV/0!"},{"$f":"AVERAGE(B$15:AO$15,B$46:AO$46,B$77:AO$77,B$108:AO$108,B$139:AO$139,B$170:AO$170,B$201:AO$201,B$232:AO$232,B$263:AO$263,B$294:AO$294)","v":{"$error":"#DIV/0!"}}]
[9,null,null,null,null,null,null,null,null,null,null,null,null,null,null,null,null,null,null,null,null,null,null,null,null,null,null,null,null,null,null,null,null,null,null,null,null,null,null,null,null,{"$error":"#DIV/0!"},{"$f":"AVERAGE(B$16:AO$16,B$47:AO$47,B$78:AO$78,B$109:AO$109,B$140:AO$140,B$171:AO$171,B$202:AO$202,B$233:AO$233,B$264:AO$264,B$295:AO$295)","v":{"$error":"#DIV/0!"}}]
[10,null,null,null,null,null,null,null,null,null,null,null,null,null,null,null,null,null,null,null,null,null,null,null,null,null,null,null,null,null,null,null,null,null,null,null,null,null,null,null,null,{"$error":"#DIV/0!"},{"$f":"AVERAGE(B$17:AO$17,B$48:AO$48,B$79:AO$79,B$110:AO$110,B$141:AO$141,B$172:AO$172,B$203:AO$203,B$234:AO$234,B$265:AO$265,B$296:AO$296)","v":{"$error":"#DIV/0!"}}]
[11,null,null,null,null,null,null,null,null,null,null,null,null,null,null,null,null,null,null,null,null,null,null,null,null,null,null,null,null,null,null,null,null,null,null,null,null,null,null,null,null,{"$error":"#DIV/0!"},{"$f":"AVERAGE(B$18:AO$18,B$49:AO$49,B$80:AO$80,B$111:AO$111,B$142:AO$142,B$173:AO$173,B$204:AO$204,B$235:AO$235,B$266:AO$266,B$297:AO$297)","v":{"$error":"#DIV/0!"}}]
[12,null,null,null,null,null,null,null,null,null,null,null,null,null,null,null,null,null,null,null,null,null,null,null,null,null,null,null,null,null,null,null,null,null,null,null,null,null,null,null,null,{"$error":"#DIV/0!"},{"$f":"AVERAGE(B$19:AO$19,B$50:AO$50,B$81:AO$81,B$112:AO$112,B$143:AO$143,B$174:AO$174,B$205:AO$205,B$236:AO$236,B$267:AO$267,B$298:AO$298)","v":{"$error":"#DIV/0!"}}]
[13,null,null,null,null,null,null,null,null,null,null,null,null,null,null,null,null,null,null,null,null,null,null,null,null,null,null,null,null,null,null,null,null,null,null,null,null,null,null,null,null,{"$error":"#DIV/0!"},{"$f":"AVERAGE(B$20:AO$20,B$51:AO$51,B$82:AO$82,B$113:AO$113,B$144:AO$144,B$175:AO$175,B$206:AO$206,B$237:AO$237,B$268:AO$268,B$299:AO$299)","v":{"$error":"#DIV/0!"}}]
[14,null,null,null,null,null,null,null,null,null,null,null,null,null,null,null,null,null,null,null,null,null,null,null,null,null,null,null,null,null,null,null,null,null,null,null,null,null,null,null,null,{"$error":"#DIV/0!"},{"$f":"AVERAGE(B$21:AO$21,B$52:AO$52,B$83:AO$83,B$114:AO$114,B$145:AO$145,B$176:AO$176,B$207:AO$207,B$238:AO$238,B$269:AO$269,B$300:AO$300)","v":{"$error":"#DIV/0!"}}]
[15,null,null,null,null,null,null,null,null,null,null,null,null,null,null,null,null,null,null,null,null,null,null,null,null,null,null,null,null,null,null,null,null,null,null,null,null,null,null,null,null,{"$error":"#DIV/0!"},{"$f":"AVERAGE(B$22:AO$22,B$53:AO$53,B$84:AO$84,B$115:AO$115,B$146:AO$146,B$177:AO$177,B$208:AO$208,B$239:AO$239,B$270:AO$270,B$301:AO$301)","v":{"$error":"#DIV/0!"}}]
[]
["RECOMENDACIONES, QUEJAS, SUGERENCIAS, FELICITACIONES:"]
[]
[]
[]
[]
[]
[]
["4 / ?"]
[null,null,null,null,null,null,"Encuesta de Satisfacción de Usuario"]
[]
[null,null,null,null,null,null,"Lógica Borrosa"]
[null,null,null,null,null,null,"Encuestas del Proceso: "]
[]
["NO. DE PREG.","EQUIVALE AL NÚMERO DE ENCUESTAS REALIZADAS ",null,null,null,null,null,null,null,null,null,null,null,null,null,null,null,null,null,null,null,null,null,null,null,null,null,null,null,null,null,null,null,null,null,null,null,null,null,null,null,"PRO- MEDIO Secc.","PRO- MEDIO Gral."]
[null,161,162,163,164,165,166,167,168,169,170,171,172,173,174,175,176,177,178,179,180,181,182,183,184,185,186,187,188,189,190,191,192,193,194,195,196,197,198,199,200]
[1,null,null,null,null,null,null,null,null,null,null,null,null,null,null,null,null,null,null,null,null,null,null,null,null,null,null,null,null,null,null,null,null,null,null,null,null,null,null,null,null,{"$f":"AVERAGE(B132:AO132)","v":{"$error":"#DIV/0!"}},{"$f":"AVERAGE(B$8:AO$8,B$39:AO$39,B$70:AO$70,B$101:AO$101,B$132:AO$132,B$163:AO$163,B$194:AO$194,B$225:AO$225,B$256:AO$256,B$287:AO$287)","v":{"$error":"#DIV/0!"}}]
[2,null,null,null,null,null,null,null,null,null,null,null,null,null,null,null,null,null,null,null,null,null,null,null,null,null,null,null,null,null,null,null,null,null,null,null,null,null,null,null,null,{"$f":"AVERAGE(B133:AO133)","v":{"$error":"#DIV/0!"}},{"$f":"AVERAGE(B$9:AO$9,B$40:AO$40,B$71:AO$71,B$102:AO$102,B$133:AO$133,B$164:AO$164,B$195:AO$195,B$226:AO$226,B$257:AO$257,B$288:AO$288)","v":{"$error":"#DIV/0!"}}]
[3,null,null,null,null,null,null,null,null,null,null,null,null,null,null,null,null,null,null,null,null,null,null,null,null,null,null,null,null,null,null,null,null,null,null,null,null,null,null,null,null,{"$error":"#DIV/0!"},{"$f":"AVERAGE(B$10:AO$10,B$41:AO$41,B$72:AO$72,B$103:AO$103,B$134:AO$134,B$165:AO$165,B$196:AO$196,B$227:AO$227,B$258:AO$258,B$289:AO$289)","v":{"$error":"#DIV/0!"}}]
[4,null,null,null,null,null,null,null,null,null,null,null,null,null,null,null,null,null,null,null,null,null,null,null,null,null,null,null,null,null,null,null,null,null,null,null,null,null,null,null,null,{"$error":"#DIV/0!"},{"$f":"AVERAGE(B$11:AO$11,B$42:AO$42,B$73:AO$73,B$104:AO$104,B$135:AO$135,B$166:AO$166,B$197:AO$197,B$228:AO$228,B$259:AO$259,B$290:AO$290)","v":{"$error":"#DIV/0!"}}]
[5,null,null,null,null,null,null,null,null,null,null,null,null,null,null,null,null,null,null,null,null,null,null,null,null,null,null,null,null,null,null,null,null,null,null,null,null,null,null,null,null,{"$error":"#DIV/0!"},{"$f":"AVERAGE(B$12:AO$12,B$43:AO$43,B$74:AO$74,B$105:AO$105,B$136:AO$136,B$167:AO$167,B$198:AO$198,B$229:AO$229,B$260:AO$260,B$291:AO$291)","v":{"$error":"#DIV/0!"}}]
[6,null,null,null,null,null,null,null,null,null,null,null,null,null,null,null,null,null,null,null,null,null,null,null,null,null,null,null,null,null,null,null,null,null,null,null,null,null,null,null,null,{"$error":"#DIV/0!"},{"$f":"AVERAGE(B$13:AO$13,B$44:AO$44,B$75:AO$75,B$106:AO$106,B$137:AO$137,B$168:AO$168,B$199:AO$199,B$230:AO$230,B$261:AO$261,B$292:AO$292)","v":{"$error":"#DIV/0!"}}]
[7,null,null,null,null,null,null,null,null,null,null,null,null,null,null,null,null,null,null,null,null,null,null,null,null,null,null,null,null,null,null,null,null,null,null,null,null,null,null,null,null,{"$error":"#DIV/0!"},{"$f":"AVERAGE(B$14:AO$14,B$45:AO$45,B$76:AO$76,B$107:AO$107,B$138:AO$138,B$169:AO$169,B$200:AO$200,B$231:AO$231,B$262:AO$262,B$293:AO$293)","v":{"$error":"#DIV/0!"}}]
[8,null,null,null,null,null,null,null,null,null,null,null,null,null,null,null,null,null,null,null,null,null,null,null,null,null,null,null,null,null,null,null,null,null,null,null,null,null,null,null,null,{"$error":"#DIV/0!"},{"$f":"AVERAGE(B$15:AO$15,B$46:AO$46,B$77:AO$77,B$108:AO$108,B$139:AO$139,B$170:AO$170,B$201:AO$201,B$232:AO$232,B$263:AO$263,B$294:AO$294)","v":{"$error":"#DIV/0!"}}]
[9,null,null,null,null,null,null,null,null,null,null,null,null,null,null,null,null,null,null,null,null,null,null,null,null,null,null,null,null,null,null,null,null,null,null,null,null,null,null,null,null,{"$error":"#DIV/0!"},{"$f":"AVERAGE(B$16:AO$16,B$47:AO$47,B$78:AO$78,B$109:AO$109,B$140:AO$140,B$171:AO$171,B$202:AO$202,B$233:AO$233,B$264:AO$264,B$295:AO$295)","v":{"$error":"#DIV/0!"}}]
[10,null,null,null,null,null,null,null,null,null,null,null,null,null,null,null,null,null,null,null,null,null,null,null,null,null,null,null,null,null,null,null,null,null,null,null,null,null,null,null,null,{"$error":"#DIV/0!"},{"$f":"AVERAGE(B$17:AO$17,B$48:AO$48,B$79:AO$79,B$110:AO$110,B$141:AO$141,B$172:AO$172,B$203:AO$203,B$234:AO$234,B$265:AO$265,B$296:AO$296)","v":{"$error":"#DIV/0!"}}]
[11,null,null,null,null,null,null,null,null,null,null,null,null,null,null,null,null,null,null,null,null,null,null,null,null,null,null,null,null,null,null,null,null,null,null,null,null,null,null,null,null,{"$error":"#DIV/0!"},{"$f":"AVERAGE(B$18:AO$18,B$49:AO$49,B$80:AO$80,B$111:AO$111,B$142:AO$142,B$173:AO$173,B$204:AO$204,B$235:AO$235,B$266:AO$266,B$297:AO$297)","v":{"$error":"#DIV/0!"}}]
[12,null,null,null,null,null,null,null,null,null,null,null,null,null,null,null,null,null,null,null,null,null,null,null,null,null,null,null,null,null,null,null,null,null,null,null,null,null,null,null,null,{"$error":"#DIV/0!"},{"$f":"AVERAGE(B$19:AO$19,B$50:AO$50,B$81:AO$81,B$112:AO$112,B$143:AO$143,B$174:AO$174,B$205:AO$205,B$236:AO$236,B$267:AO$267,B$298:AO$298)","v":{"$error":"#DIV/0!"}}]
[13,null,null,null,null,null,null,null,null,null,null,null,null,null,null,null,null,null,null,null,null,null,null,null,null,null,null,null,null,null,null,null,null,null,null,null,null,null,null,null,null,{"$error":"#DIV/0!"},{"$f":"AVERAGE(B$20:AO$20,B$51:AO$51,B$82:AO$82,B$113:AO$113,B$144:AO$144,B$175:AO$175,B$206:AO$206,B$237:AO$237,B$268:AO$268,B$299:AO$299)","v":{"$error":"#DIV/0!"}}]
[14,null,null,null,null,null,null,null,null,null,null,null,null,null,null,null,null,null,null,null,null,null,null,null,null,null,null,null,null,null,null,null,null,null,null,null,null,null,null,null,null,{"$error":"#DIV/0!"},{"$f":"AVERAGE(B$21:AO$21,B$52:AO$52,B$83:AO$83,B$114:AO$114,B$145:AO$145,B$176:AO$176,B$207:AO$207,B$238:AO$238,B$269:AO$269,B$300:AO$300)","v":{"$error":"#DIV/0!"}}]
[15,null,null,null,null,null,null,null,null,null,null,null,null,null,null,null,null,null,null,null,null,null,null,null,null,null,null,null,null,null,null,null,null,null,null,null,null,null,null,null,null,{"$error":"#DIV/0!"},{"$f":"AVERAGE(B$22:AO$22,B$53:AO$53,B$84:AO$84,B$115:AO$115,B$146:AO$146,B$177:AO$177,B$208:AO$208,B$239:AO$239,B$270:AO$270,B$301:AO$301)","v":{"$error":"#DIV/0!"}}]
[]
["RECOMENDACIONES, QUEJAS, SUGERENCIAS, FELICITACIONES:"]
[]
[]
[]
[]
[]
[]
["5 / ?"]
[null,null,null,null,null,null,"Encuesta de Satisfacción de Usuario"]
[]
[null,null,null,null,null,null,"Lógica Borrosa"]
[null,null,null,null,null,null,"Encuestas del Proceso: "]
[]
["NO. DE PREG.","EQUIVALE AL NÚMERO DE ENCUESTAS REALIZADAS ",null,null,null,null,null,null,null,null,null,null,null,null,null,null,null,null,null,null,null,null,null,null,null,null,null,null,null,null,null,null,null,null,null,null,null,null,null,null,null,"PRO- MEDIO Secc.","PRO- MEDIO Gral."]
[null,201,202,203,204,205,206,207,208,209,210,211,212,213,214,215,216,217,218,219,220,221,222,223,224,225,226,227,228,229,230,231,232,233,234,235,236,237,238,239,240]
[1,null,null,null,null,null,null,null,null,null,null,null,null,null,null,null,null,null,null,null,null,null,null,null,null,null,null,null,null,null,null,null,null,null,null,null,null,null,null,null,null,{"$f":"AVERAGE(B163:AO163)","v":{"$error":"#DIV/0!"}},{"$f":"AVERAGE(B$8:AO$8,B$39:AO$39,B$70:AO$70,B$101:AO$101,B$132:AO$132,B$163:AO$163,B$194:AO$194,B$225:AO$225,B$256:AO$256,B$287:AO$287)","v":{"$error":"#DIV/0!"}}]
[2,null,null,null,null,null,null,null,null,null,null,null,null,null,null,null,null,null,null,null,null,null,null,null,null,null,null,null,null,null,null,null,null,null,null,null,null,null,null,null,null,{"$f":"AVERAGE(B164:AO164)","v":{"$error":"#DIV/0!"}},{"$f":"AVERAGE(B$9:AO$9,B$40:AO$40,B$71:AO$71,B$102:AO$102,B$133:AO$133,B$164:AO$164,B$195:AO$195,B$226:AO$226,B$257:AO$257,B$288:AO$288)","v":{"$error":"#DIV/0!"}}]
[3,null,null,null,null,null,null,null,null,null,null,null,null,null,null,null,null,null,null,null,null,null,null,null,null,null,null,null,null,null,null,null,null,null,null,null,null,null,null,null,null,{"$error":"#DIV/0!"},{"$f":"AVERAGE(B$10:AO$10,B$41:AO$41,B$72:AO$72,B$103:AO$103,B$134:AO$134,B$165:AO$165,B$196:AO$196,B$227:AO$227,B$258:AO$258,B$289:AO$289)","v":{"$error":"#DIV/0!"}}]
[4,null,null,null,null,null,null,null,null,null,null,null,null,null,null,null,null,null,null,null,null,null,null,null,null,null,null,null,null,null,null,null,null,null,null,null,null,null,null,null,null,{"$error":"#DIV/0!"},{"$f":"AVERAGE(B$11:AO$11,B$42:AO$42,B$73:AO$73,B$104:AO$104,B$135:AO$135,B$166:AO$166,B$197:AO$197,B$228:AO$228,B$259:AO$259,B$290:AO$290)","v":{"$error":"#DIV/0!"}}]
[5,null,null,null,null,null,null,null,null,null,null,null,null,null,null,null,null,null,null,null,null,null,null,null,null,null,null,null,null,null,null,null,null,null,null,null,null,null,null,null,null,{"$error":"#DIV/0!"},{"$f":"AVERAGE(B$12:AO$12,B$43:AO$43,B$74:AO$74,B$105:AO$105,B$136:AO$136,B$167:AO$167,B$198:AO$198,B$229:AO$229,B$260:AO$260,B$291:AO$291)","v":{"$error":"#DIV/0!"}}]
[6,null,null,null,null,null,null,null,null,null,null,null,null,null,null,null,null,null,null,null,null,null,null,null,null,null,null,null,null,null,null,null,null,null,null,null,null,null,null,null,null,{"$error":"#DIV/0!"},{"$f":"AVERAGE(B$13:AO$13,B$44:AO$44,B$75:AO$75,B$106:AO$106,B$137:AO$137,B$168:AO$168,B$199:AO$199,B$230:AO$230,B$261:AO$261,B$292:AO$292)","v":{"$error":"#DIV/0!"}}]
[7,null,null,null,null,null,null,null,null,null,null,null,null,null,null,null,null,null,null,null,null,null,null,null,null,null,null,null,null,null,null,null,null,null,null,null,null,null,null,null,null,{"$error":"#DIV/0!"},{"$f":"AVERAGE(B$14:AO$14,B$45:AO$45,B$76:AO$76,B$107:AO$107,B$138:AO$138,B$169:AO$169,B$200:AO$200,B$231:AO$231,B$262:AO$262,B$293:AO$293)","v":{"$error":"#DIV/0!"}}]
[8,null,null,null,null,null,null,null,null,null,null,null,null,null,null,null,null,null,null,null,null,null,null,null,null,null,null,null,null,null,null,null,null,null,null,null,null,null,null,null,null,{"$error":"#DIV/0!"},{"$f":"AVERAGE(B$15:AO$15,B$46:AO$46,B$77:AO$77,B$108:AO$108,B$139:AO$139,B$170:AO$170,B$201:AO$201,B$232:AO$232,B$263:AO$263,B$294:AO$294)","v":{"$error":"#DIV/0!"}}]
[9,null,null,null,null,null,null,null,null,null,null,null,null,null,null,null,null,null,null,null,null,null,null,null,null,null,null,null,null,null,null,null,null,null,null,null,null,null,null,null,null,{"$error":"#DIV/0!"},{"$f":"AVERAGE(B$16:AO$16,B$47:AO$47,B$78:AO$78,B$109:AO$109,B$140:AO$140,B$171:AO$171,B$202:AO$202,B$233:AO$233,B$264:AO$264,B$295:AO$295)","v":{"$error":"#DIV/0!"}}]
[10,null,null,null,null,null,null,null,null,null,null,null,null,null,null,null,null,null,null,null,null,null,null,null,null,null,null,null,null,null,null,null,null,null,null,null,null,null,null,null,null,{"$error":"#DIV/0!"},{"$f":"AVERAGE(B$17:AO$17,B$48:AO$48,B$79:AO$79,B$110:AO$110,B$141:AO$141,B$172:AO$172,B$203:AO$203,B$234:AO$234,B$265:AO$265,B$296:AO$296)","v":{"$error":"#DIV/0!"}}]
[11,null,null,null,null,null,null,null,null,null,null,null,null,null,null,null,null,null,null,null,null,null,null,null,null,null,null,null,null,null,null,null,null,null,null,null,null,null,null,null,null,{"$error":"#DIV/0!"},{"$f":"AVERAGE(B$18:AO$18,B$49:AO$49,B$80:AO$80,B$111:AO$111,B$142:AO$142,B$173:AO$173,B$204:AO$204,B$235:AO$235,B$266:AO$266,B$297:AO$297)","v":{"$error":"#DIV/0!"}}]
[12,null,null,null,null,null,null,null,null,null,null,null,null,null,null,null,null,null,null,null,null,null,null,null,null,null,null,null,null,null,null,null,null,null,null,null,null,null,null,null,null,{"$error":"#DIV/0!"},{"$f":"AVERAGE(B$19:AO$19,B$50:AO$50,B$81:AO$81,B$112:AO$112,B$143:AO$143,B$174:AO$174,B$205:AO$205,B$236:AO$236,B$267:AO$267,B$298:AO$298)","v":{"$error":"#DIV/0!"}}]
[13,null,null,null,null,null,null,null,null,null,null,null,null,null,null,null,null,null,null,null,null,null,null,null,null,null,null,null,null,null,null,null,null,null,null,null,null,null,null,null,null,{"$error":"#DIV/0!"},{"$f":"AVERAGE(B$20:AO$20,B$51:AO$51,B$82:AO$82,B$113:AO$113,B$144:AO$144,B$175:AO$175,B$206:AO$206,B$237:AO$237,B$268:AO$268,B$299:AO$299)","v":{"$error":"#DIV/0!"}}]
[14,null,null,null,null,null,null,null,null,null,null,null,null,null,null,null,null,null,null,null,null,null,null,null,null,null,null,null,null,null,null,null,null,null,null,null,null,null,null,null,null,{"$error":"#DIV/0!"},{"$f":"AVERAGE(B$21:AO$21,B$52:AO$52,B$83:AO$83,B$114:AO$114,B$145:AO$145,B$176:AO$176,B$207:AO$207,B$238:AO$238,B$269:AO$269,B$300:AO$300)","v":{"$error":"#DIV/0!"}}]
[15,null,null,null,null,null,null,null,null,null,null,null,null,null,null,null,null,null,null,null,null,null,null,null,null,null,null,null,null,null,null,null,null,null,null,null,null,null,null,null,null,{"$error":"#DIV/0!"},{"$f":"AVERAGE(B$22:AO$22,B$53:AO$53,B$84:AO$84,B$115:AO$115,B$146:AO$146,B$177:AO$177,B$208:AO$208,B$239:AO$239,B$270:AO$270,B$301:AO$301)","v":{"$error":"#DIV/0!"}}]
[]
["RECOMENDACIONES, QUEJAS, SUGERENCIAS, FELICITACIONES:"]
[]
[]
[]
[]
[]
[]
["6 / ?"]
[null,null,null,null,null,null,"Encuesta de Satisfacción de Usuario"]
[]
[null,null,null,null,null,null,"Lógica Borrosa"]
[null,null,null,null,null,null,"Encuestas del Proceso: "]
[]
["NO. DE PREG.","EQUIVALE AL NÚMERO DE ENCUESTAS REALIZADAS ",null,null,null,null,null,null,null,null,null,null,null,null,null,null,null,null,null,null,null,null,null,null,null,null,null,null,null,null,null,null,null,null,null,null,null,null,null,null,null,"PRO- MEDIO Secc.","PRO- MEDIO Gral."]
[null,241,242,243,244,245,246,247,248,249,250,251,252,253,254,255,256,257,258,259,260,261,262,263,264,265,266,267,268,269,270,271,272,273,274,275,276,277,278,279,280]
[1,null,null,null,null,null,null,null,null,null,null,null,null,null,null,null,null,null,null,null,null,null,null,null,null,null,null,null,null,null,null,null,null,null,null,null,null,null,null,null,null,{"$f":"AVERAGE(B194:AO194)","v":{"$error":"#DIV/0!"}},{"$f":"AVERAGE(B$8:AO$8,B$39:AO$39,B$70:AO$70,B$101:AO$101,B$132:AO$132,B$163:AO$163,B$194:AO$194,B$225:AO$225,B$256:AO$256,B$287:AO$287)","v":{"$error":"#DIV/0!"}}]
[2,null,null,null,null,null,null,null,null,null,null,null,null,null,null,null,null,null,null,null,null,null,null,null,null,null,null,null,null,null,null,null,null,null,null,null,null,null,null,null,null,{"$f":"AVERAGE(B195:AO195)","v":{"$error":"#DIV/0!"}},{"$f":"AVERAGE(B$9:AO$9,B$40:AO$40,B$71:AO$71,B$102:AO$102,B$133:AO$133,B$164:AO$164,B$195:AO$195,B$226:AO$226,B$257:AO$257,B$288:AO$288)","v":{"$error":"#DIV/0!"}}]
[3,null,null,null,null,null,null,null,null,null,null,null,null,null,null,null,null,null,null,null,null,null,null,null,null,null,null,null,null,null,null,null,null,null,null,null,null,null,null,null,null,{"$error":"#DIV/0!"},{"$f":"AVERAGE(B$10:AO$10,B$41:AO$41,B$72:AO$72,B$103:AO$103,B$134:AO$134,B$165:AO$165,B$196:AO$196,B$227:AO$227,B$258:AO$258,B$289:AO$289)","v":{"$error":"#DIV/0!"}}]
[4,null,null,null,null,null,null,null,null,null,null,null,null,null,null,null,null,null,null,null,null,null,null,null,null,null,null,null,null,null,null,null,null,null,null,null,null,null,null,null,null,{"$error":"#DIV/0!"},{"$f":"AVERAGE(B$11:AO$11,B$42:AO$42,B$73:AO$73,B$104:AO$104,B$135:AO$135,B$166:AO$166,B$197:AO$197,B$228:AO$228,B$259:AO$259,B$290:AO$290)","v":{"$error":"#DIV/0!"}}]
[5,null,null,null,null,null,null,null,null,null,null,null,null,null,null,null,null,null,null,null,null,null,null,null,null,null,null,null,null,null,null,null,null,null,null,null,null,null,null,null,null,{"$error":"#DIV/0!"},{"$f":"AVERAGE(B$12:AO$12,B$43:AO$43,B$74:AO$74,B$105:AO$105,B$136:AO$136,B$167:AO$167,B$198:AO$198,B$229:AO$229,B$260:AO$260,B$291:AO$291)","v":{"$error":"#DIV/0!"}}]
[6,null,null,null,null,null,null,null,null,null,null,null,null,null,null,null,null,null,null,null,null,null,null,null,null,null,null,null,null,null,null,null,null,null,null,null,null,null,null,null,null,{"$error":"#DIV/0!"},{"$f":"AVERAGE(B$13:AO$13,B$44:AO$44,B$75:AO$75,B$106:AO$106,B$137:AO$137,B$168:AO$168,B$199:AO$199,B$230:AO$230,B$261:AO$261,B$292:AO$292)","v":{"$error":"#DIV/0!"}}]
[7,null,null,null,null,null,null,null,null,null,null,null,null,null,null,null,null,null,null,null,null,null,null,null,null,null,null,null,null,null,null,null,null,null,null,null,null,null,null,null,null,{"$error":"#DIV/0!"},{"$f":"AVERAGE(B$14:AO$14,B$45:AO$45,B$76:AO$76,B$107:AO$107,B$138:AO$138,B$169:AO$169,B$200:AO$200,B$231:AO$231,B$262:AO$262,B$293:AO$293)","v":{"$error":"#DIV/0!"}}]
[8,null,null,null,null,null,null,null,null,null,null,null,null,null,null,null,null,null,null,null,null,null,null,null,null,null,null,null,null,null,null,null,null,null,null,null,null,null,null,null,null,{"$error":"#DIV/0!"},{"$f":"AVERAGE(B$15:AO$15,B$46:AO$46,B$77:AO$77,B$108:AO$108,B$139:AO$139,B$170:AO$170,B$201:AO$201,B$232:AO$232,B$263:AO$263,B$294:AO$294)","v":{"$error":"#DIV/0!"}}]
[9,null,null,null,null,null,null,null,null,null,null,null,null,null,null,null,null,null,null,null,null,null,null,null,null,null,null,null,null,null,null,null,null,null,null,null,null,null,null,null,null,{"$error":"#DIV/0!"},{"$f":"AVERAGE(B$16:AO$16,B$47:AO$47,B$78:AO$78,B$109:AO$109,B$140:AO$140,B$171:AO$171,B$202:AO$202,B$233:AO$233,B$264:AO$264,B$295:AO$295)","v":{"$error":"#DIV/0!"}}]
[10,null,null,null,null,null,null,null,null,null,null,null,null,null,null,null,null,null,null,null,null,null,null,null,null,null,null,null,null,null,null,null,null,null,null,null,null,null,null,null,null,{"$error":"#DIV/0!"},{"$f":"AVERAGE(B$17:AO$17,B$48:AO$48,B$79:AO$79,B$110:AO$110,B$141:AO$141,B$172:AO$172,B$203:AO$203,B$234:AO$234,B$265:AO$265,B$296:AO$296)","v":{"$error":"#DIV/0!"}}]
[11,null,null,null,null,null,null,null,null,null,null,null,null,null,null,null,null,null,null,null,null,null,null,null,null,null,null,null,null,null,null,null,null,null,null,null,null,null,null,null,null,{"$error":"#DIV/0!"},{"$f":"AVERAGE(B$18:AO$18,B$49:AO$49,B$80:AO$80,B$111:AO$111,B$142:AO$142,B$173:AO$173,B$204:AO$204,B$235:AO$235,B$266:AO$266,B$297:AO$297)","v":{"$error":"#DIV/0!"}}]
[12,null,null,null,null,null,null,null,null,null,null,null,null,null,null,null,null,null,null,null,null,null,null,null,null,null,null,null,null,null,null,null,null,null,null,null,null,null,null,null,null,{"$error":"#DIV/0!"},{"$f":"AVERAGE(B$19:AO$19,B$50:AO$50,B$81:AO$81,B$112:AO$112,B$143:AO$143,B$174:AO$174,B$205:AO$205,B$236:AO$236,B$267:AO$267,B$298:AO$298)","v":{"$error":"#DIV/0!"}}]
[13,null,null,null,null,null,null,null,null,null,null,null,null,null,null,null,null,null,null,null,null,null,null,null,null,null,null,null,null,null,null,null,null,null,null,null,null,null,null,null,null,{"$error":"#DIV/0!"},{"$f":"AVERAGE(B$20:AO$20,B$51:AO$51,B$82:AO$82,B$113:AO$113,B$144:AO$144,B$175:AO$175,B$206:AO$206,B$237:AO$237,B$268:AO$268,B$299:AO$299)","v":{"$error":"#DIV/0!"}}]
[14,null,null,null,null,null,null,null,null,null,null,null,null,null,null,null,null,null,null,null,null,null,null,null,null,null,null,null,null,null,null,null,null,null,null,null,null,null,null,null,null,{"$error":"#DIV/0!"},{"$f":"AVERAGE(B$21:AO$21,B$52:AO$52,B$83:AO$83,B$114:AO$114,B$145:AO$145,B$176:AO$176,B$207:AO$207,B$238:AO$238,B$269:AO$269,B$300:AO$300)","v":{"$error":"#DIV/0!"}}]
[15,null,null,null,null,null,null,null,null,null,null,null,null,null,null,null,null,null,null,null,null,null,null,null,null,null,null,null,null,null,null,null,null,null,null,null,null,null,null,null,null,{"$error":"#DIV/0!"},{"$f":"AVERAGE(B$22:AO$22,B$53:AO$53,B$84:AO$84,B$115:AO$115,B$146:AO$146,B$177:AO$177,B$208:AO$208,B$239:AO$239,B$270:AO$270,B$301:AO$301)","v":{"$error":"#DIV/0!"}}]
[]
["RECOMENDACIONES, QUEJAS, SUGERENCIAS, FELICITACIONES:"]
[]
[]
[]
[]
[]
[]
["7 / ?"]
[null,null,null,null,null,null,"Encuesta de Satisfacción de Usuario"]
[]
[null,null,null,null,null,null,"Lógica Borrosa"]
[null,null,null,null,null,null,"Encuestas del Proceso: "]
[]
["NO. DE PREG.","EQUIVALE AL NÚMERO DE ENCUESTAS REALIZADAS ",null,null,null,null,null,null,null,null,null,null,null,null,null,null,null,null,null,null,null,null,null,null,null,null,null,null,null,null,null,null,null,null,null,null,null,null,null,null,null,"PRO- MEDIO Secc.","PRO- MEDIO Gral."]
[null,281,282,283,284,285,286,287,288,289,290,291,292,293,294,295,296,297,298,299,300,301,302,303,304,305,306,307,308,309,310,311,312,313,314,315,316,317,318,319,320]
[1,null,null,null,null,null,null,null,null,null,null,null,null,null,null,null,null,null,null,null,null,null,null,null,null,null,null,null,null,null,null,null,null,null,null,null,null,null,null,null,null,{"$f":"AVERAGE(B225:AO225)","v":{"$error":"#DIV/0!"}},{"$f":"AVERAGE(B$8:AO$8,B$39:AO$39,B$70:AO$70,B$101:AO$101,B$132:AO$132,B$163:AO$163,B$194:AO$194,B$225:AO$225,B$256:AO$256,B$287:AO$287)","v":{"$error":"#DIV/0!"}}]
[2,null,null,null,null,null,null,null,null,null,null,null,null,null,null,null,null,null,null,null,null,null,null,null,null,null,null,null,null,null,null,null,null,null,null,null,null,null,null,null,null,{"$f":"AVERAGE(B226:AO226)","v":{"$error":"#DIV/0!"}},{"$f":"AVERAGE(B$9:AO$9,B$40:AO$40,B$71:AO$71,B$102:AO$102,B$133:AO$133,B$164:AO$164,B$195:AO$195,B$226:AO$226,B$257:AO$257,B$288:AO$288)","v":{"$error":"#DIV/0!"}}]
[3,null,null,null,null,null,null,null,null,null,null,null,null,null,null,null,null,null,null,null,null,null,null,null,null,null,null,null,null,null,null,null,null,null,null,null,null,null,null,null,null,{"$error":"#DIV/0!"},{"$f":"AVERAGE(B$10:AO$10,B$41:AO$41,B$72:AO$72,B$103:AO$103,B$134:AO$134,B$165:AO$165,B$196:AO$196,B$227:AO$227,B$258:AO$258,B$289:AO$289)","v":{"$error":"#DIV/0!"}}]
[4,null,null,null,null,null,null,null,null,null,null,null,null,null,null,null,null,null,null,null,null,null,null,null,null,null,null,null,null,null,null,null,null,null,null,null,null,null,null,null,null,{"$error":"#DIV/0!"},{"$f":"AVERAGE(B$11:AO$11,B$42:AO$42,B$73:AO$73,B$104:AO$104,B$135:AO$135,B$166:AO$166,B$197:AO$197,B$228:AO$228,B$259:AO$259,B$290:AO$290)","v":{"$error":"#DIV/0!"}}]
[5,null,null,null,null,null,null,null,null,null,null,null,null,null,null,null,null,null,null,null,null,null,null,null,null,null,null,null,null,null,null,null,null,null,null,null,null,null,null,null,null,{"$error":"#DIV/0!"},{"$f":"AVERAGE(B$12:AO$12,B$43:AO$43,B$74:AO$74,B$105:AO$105,B$136:AO$136,B$167:AO$167,B$198:AO$198,B$229:AO$229,B$260:AO$260,B$291:AO$291)","v":{"$error":"#DIV/0!"}}]
[6,null,null,null,null,null,null,null,null,null,null,null,null,null,null,null,null,null,null,null,null,null,null,null,null,null,null,null,null,null,null,null,null,null,null,null,null,null,null,null,null,{"$error":"#DIV/0!"},{"$f":"AVERAGE(B$13:AO$13,B$44:AO$44,B$75:AO$75,B$106:AO$106,B$137:AO$137,B$168:AO$168,B$199:AO$199,B$230:AO$230,B$261:AO$261,B$292:AO$292)","v":{"$error":"#DIV/0!"}}]
[7,null,null,null,null,null,null,null,null,null,null,null,null,null,null,null,null,null,null,null,null,null,null,null,null,null,null,null,null,null,null,null,null,null,null,null,null,null,null,null,null,{"$error":"#DIV/0!"},{"$f":"AVERAGE(B$14:AO$14,B$45:AO$45,B$76:AO$76,B$107:AO$107,B$138:AO$138,B$169:AO$169,B$200:AO$200,B$231:AO$231,B$262:AO$262,B$293:AO$293)","v":{"$error":"#DIV/0!"}}]
[8,null,null,null,null,null,null,null,null,null,null,null,null,null,null,null,null,null,null,null,null,null,null,null,null,null,null,null,null,null,null,null,null,null,null,null,null,null,null,null,null,{"$error":"#DIV/0!"},{"$f":"AVERAGE(B$15:AO$15,B$46:AO$46,B$77:AO$77,B$108:AO$108,B$139:AO$139,B$170:AO$170,B$201:AO$201,B$232:AO$232,B$263:AO$263,B$294:AO$294)","v":{"$error":"#DIV/0!"}}]
[9,null,null,null,null,null,null,null,null,null,null,null,null,null,null,null,null,null,null,null,null,null,null,null,null,null,null,null,null,null,null,null,null,null,null,null,null,null,null,null,null,{"$error":"#DIV/0!"},{"$f":"AVERAGE(B$16:AO$16,B$47:AO$47,B$78:AO$78,B$109:AO$109,B$140:AO$140,B$171:AO$171,B$202:AO$202,B$233:AO$233,B$264:AO$264,B$295:AO$295)","v":{"$error":"#DIV/0!"}}]
[10,null,null,null,null,null,null,null,null,null,null,null,null,null,null,null,null,null,null,null,null,null,null,null,null,null,null,null,null,null,null,null,null,null,null,null,null,null,null,null,null,{"$error":"#DIV/0!"},{"$f":"AVERAGE(B$17:AO$17,B$48:AO$48,B$79:AO$79,B$110:AO$110,B$141:AO$141,B$172:AO$172,B$203:AO$203,B$234:AO$234,B$265:AO$265,B$296:AO$296)","v":{"$error":"#DIV/0!"}}]
[11,null,null,null,null,null,null,null,null,null,null,null,null,null,null,null,null,null,null,null,null,null,null,null,null,null,null,null,null,null,null,null,null,null,null,null,null,null,null,null,null,{"$error":"#DIV/0!"},{"$f":"AVERAGE(B$18:AO$18,B$49:AO$49,B$80:AO$80,B$111:AO$111,B$142:AO$142,B$173:AO$173,B$204:AO$204,B$235:AO$235,B$266:AO$266,B$297:AO$297)","v":{"$error":"#DIV/0!"}}]
[12,null,null,null,null,null,null,null,null,null,null,null,null,null,null,null,null,null,null,null,null,null,null,null,null,null,null,null,null,null,null,null,null,null,null,null,null,null,null,null,null,{"$error":"#DIV/0!"},{"$f":"AVERAGE(B$19:AO$19,B$50:AO$50,B$81:AO$81,B$112:AO$112,B$143:AO$143,B$174:AO$174,B$205:AO$205,B$236:AO$236,B$267:AO$267,B$298:AO$298)","v":{"$error":"#DIV/0!"}}]
[13,null,null,null,null,null,null,null,null,null,null,null,null,null,null,null,null,null,null,null,null,null,null,null,null,null,null,null,null,null,null,null,null,null,null,null,null,null,null,null,null,{"$error":"#DIV/0!"},{"$f":"AVERAGE(B$20:AO$20,B$51:AO$51,B$82:AO$82,B$113:AO$113,B$144:AO$144,B$175:AO$175,B$206:AO$206,B$237:AO$237,B$268:AO$268,B$299:AO$299)","v":{"$error":"#DIV/0!"}}]
[14,null,null,null,null,null,null,null,null,null,null,null,null,null,null,null,null,null,null,null,null,null,null,null,null,null,null,null,null,null,null,null,null,null,null,null,null,null,null,null,null,{"$error":"#DIV/0!"},{"$f":"AVERAGE(B$21:AO$21,B$52:AO$52,B$83:AO$83,B$114:AO$114,B$145:AO$145,B$176:AO$176,B$207:AO$207,B$238:AO$238,B$269:AO$269,B$300:AO$300)","v":{"$error":"#DIV/0!"}}]
[15,null,null,null,null,null,null,null,null,null,null,null,null,null,null,null,null,null,null,null,null,null,null,null,null,null,null,null,null,null,null,null,null,null,null,null,null,null,null,null,null,{"$error":"#DIV/0!"},{"$f":"AVERAGE(B$22:AO$22,B$53:AO$53,B$84:AO$84,B$115:AO$115,B$146:AO$146,B$177:AO$177,B$208:AO$208,B$239:AO$239,B$270:AO$270,B$301:AO$301)","v":{"$error":"#DIV/0!"}}]
[]
["RECOMENDACIONES, QUEJAS, SUGERENCIAS, FELICITACIONES:"]
[]
[]
[]
[]
[]
[]
["8 / ?"]
[null,null,null,null,null,null,"Encuesta de Satisfacción de Usuario"]
[]
[null,null,null,null,null,null,"Lógica Borrosa"]
[null,null,null,null,null,null,"Encuestas del Proceso: "]
[]
["NO. DE PREG.","EQUIVALE AL NÚMERO DE ENCUESTAS REALIZADAS ",null,null,null,null,null,null,null,null,null,null,null,null,null,null,null,null,null,null,null,null,null,null,null,null,null,null,null,null,null,null,null,null,null,null,null,null,null,null,null,"PRO- MEDIO Secc.","PRO- MEDIO Gral."]
[null,321,322,323,324,325,326,327,328,329,330,331,332,333,334,335,336,337,338,339,340,341,342,343,344,345,346,347,348,349,350,351,352,353,354,355,356,357,358,359,360]
[1,null,null,null,null,null,null,null,null,null,null,null,null,null,null,null,null,null,null,null,null,null,null,null,null,null,null,null,null,null,null,null,null,null,null,null,null,null,null,null,null,{"$f":"AVERAGE(B256:AO256)","v":{"$error":"#DIV/0!"}},{"$f":"AVERAGE(B$8:AO$8,B$39:AO$39,B$70:AO$70,B$101:AO$101,B$132:AO$132,B$163:AO$163,B$194:AO$194,B$225:AO$225,B$256:AO$256,B$287:AO$287)","v":{"$error":"#DIV/0!"}}]
[2,null,null,null,null,null,null,null,null,null,null,null,null,null,null,null,null,null,null,null,null,null,null,null,null,null,null,null,null,null,null,null,null,null,null,null,null,null,null,null,null,{"$f":"AVERAGE(B257:AO257)","v":{"$error":"#DIV/0!"}},{"$f":"AVERAGE(B$9:AO$9,B$40:AO$40,B$71:AO$71,B$102:AO$102,B$133:AO$133,B$164:AO$164,B$195:AO$195,B$226:AO$226,B$257:AO$257,B$288:AO$288)","v":{"$error":"#DIV/0!"}}]
[3,null,null,null,null,null,null,null,null,null,null,null,null,null,null,null,null,null,null,null,null,null,null,null,null,null,null,null,null,null,null,null,null,null,null,null,null,null,null,null,null,{"$error":"#DIV/0!"},{"$f":"AVERAGE(B$10:AO$10,B$41:AO$41,B$72:AO$72,B$103:AO$103,B$134:AO$134,B$165:AO$165,B$196:AO$196,B$227:AO$227,B$258:AO$258,B$289:AO$289)","v":{"$error":"#DIV/0!"}}]
[4,null,null,null,null,null,null,null,null,null,null,null,null,null,null,null,null,null,null,null,null,null,null,null,null,null,null,null,null,null,null,null,null,null,null,null,null,null,null,null,null,{"$error":"#DIV/0!"},{"$f":"AVERAGE(B$11:AO$11,B$42:AO$42,B$73:AO$73,B$104:AO$104,B$135:AO$135,B$166:AO$166,B$197:AO$197,B$228:AO$228,B$259:AO$259,B$290:AO$290)","v":{"$error":"#DIV/0!"}}]
[5,null,null,null,null,null,null,null,null,null,null,null,null,null,null,null,null,null,null,null,null,null,null,null,null,null,null,null,null,null,null,null,null,null,null,null,null,null,null,null,null,{"$error":"#DIV/0!"},{"$f":"AVERAGE(B$12:AO$12,B$43:AO$43,B$74:AO$74,B$105:AO$105,B$136:AO$136,B$167:AO$167,B$198:AO$198,B$229:AO$229,B$260:AO$260,B$291:AO$291)","v":{"$error":"#DIV/0!"}}]
[6,null,null,null,null,null,null,null,null,null,null,null,null,null,null,null,null,null,null,null,null,null,null,null,null,null,null,null,null,null,null,null,null,null,null,null,null,null,null,null,null,{"$error":"#DIV/0!"},{"$f":"AVERAGE(B$13:AO$13,B$44:AO$44,B$75:AO$75,B$106:AO$106,B$137:AO$137,B$168:AO$168,B$199:AO$199,B$230:AO$230,B$261:AO$261,B$292:AO$292)","v":{"$error":"#DIV/0!"}}]
[7,null,null,null,null,null,null,null,null,null,null,null,null,null,null,null,null,null,null,null,null,null,null,null,null,null,null,null,null,null,null,null,null,null,null,null,null,null,null,null,null,{"$error":"#DIV/0!"},{"$f":"AVERAGE(B$14:AO$14,B$45:AO$45,B$76:AO$76,B$107:AO$107,B$138:AO$138,B$169:AO$169,B$200:AO$200,B$231:AO$231,B$262:AO$262,B$293:AO$293)","v":{"$error":"#DIV/0!"}}]
[8,null,null,null,null,null,null,null,null,null,null,null,null,null,null,null,null,null,null,null,null,null,null,null,null,null,null,null,null,null,null,null,null,null,null,null,null,null,null,null,null,{"$error":"#DIV/0!"},{"$f":"AVERAGE(B$15:AO$15,B$46:AO$46,B$77:AO$77,B$108:AO$108,B$139:AO$139,B$170:AO$170,B$201:AO$201,B$232:AO$232,B$263:AO$263,B$294:AO$294)","v":{"$error":"#DIV/0!"}}]
[9,null,null,null,null,null,null,null,null,null,null,null,null,null,null,null,null,null,null,null,null,null,null,null,null,null,null,null,null,null,null,null,null,null,null,null,null,null,null,null,null,{"$error":"#DIV/0!"},{"$f":"AVERAGE(B$16:AO$16,B$47:AO$47,B$78:AO$78,B$109:AO$109,B$140:AO$140,B$171:AO$171,B$202:AO$202,B$233:AO$233,B$264:AO$264,B$295:AO$295)","v":{"$error":"#DIV/0!"}}]
[10,null,null,null,null,null,null,null,null,null,null,null,null,null,null,null,null,null,null,null,null,null,null,null,null,null,null,null,null,null,null,null,null,null,null,null,null,null,null,null,null,{"$error":"#DIV/0!"},{"$f":"AVERAGE(B$17:AO$17,B$48:AO$48,B$79:AO$79,B$110:AO$110,B$141:AO$141,B$172:AO$172,B$203:AO$203,B$234:AO$234,B$265:AO$265,B$296:AO$296)","v":{"$error":"#DIV/0!"}}]
[11,null,null,null,null,null,null,null,null,null,null,null,null,null,null,null,null,null,null,null,null,null,null,null,null,null,null,null,null,null,null,null,null,null,null,null,null,null,null,null,null,{"$error":"#DIV/0!"},{"$f":"AVERAGE(B$18:AO$18,B$49:AO$49,B$80:AO$80,B$111:AO$111,B$142:AO$142,B$173:AO$173,B$204:AO$204,B$235:AO$235,B$266:AO$266,B$297:AO$297)","v":{"$error":"#DIV/0!"}}]
[12,null,null,null,null,null,null,null,null,null,null,null,null,null,null,null,null,null,null,null,null,null,null,null,null,null,null,null,null,null,null,null,null,null,null,null,null,null,null,null,null,{"$error":"#DIV/0!"},{"$f":"AVERAGE(B$19:AO$19,B$50:AO$50,B$81:AO$81,B$112:AO$112,B$143:AO$143,B$174:AO$174,B$205:AO$205,B$236:AO$236,B$267:AO$267,B$298:AO$298)","v":{"$error":"#DIV/0!"}}]
[13,null,null,null,null,null,null,null,null,null,null,null,null,null,null,null,null,null,null,null,null,null,null,null,null,null,null,null,null,null,null,null,null,null,null,null,null,null,null,null,null,{"$error":"#DIV/0!"},{"$f":"AVERAGE(B$20:AO$20,B$51:AO$51,B$82:AO$82,B$113:AO$113,B$144:AO$144,B$175:AO$175,B$206:AO$206,B$237:AO$237,B$268:AO$268,B$299:AO$299)","v":{"$error":"#DIV/0!"}}]
[14,null,null,null,null,null,null,null,null,null,null,null,null,null,null,null,null,null,null,null,null,null,null,null,null,null,null,null,null,null,null,null,null,null,null,null,null,null,null,null,null,{"$error":"#DIV/0!"},{"$f":"AVERAGE(B$21:AO$21,B$52:AO$52,B$83:AO$83,B$114:AO$114,B$145:AO$145,B$176:AO$176,B$207:AO$207,B$238:AO$238,B$269:AO$269,B$300:AO$300)","v":{"$error":"#DIV/0!"}}]
[15,null,null,null,null,null,null,null,null,null,null,null,null,null,null,null,null,null,null,null,null,null,null,null,null,null,null,null,null,null,null,null,null,null,null,null,null,null,null,null,null,{"$error":"#DIV/0!"},{"$f":"AVERAGE(B$22:AO$22,B$53:AO$53,B$84:AO$84,B$115:AO$115,B$146:AO$146,B$177:AO$177,B$208:AO$208,B$239:AO$239,B$270:AO$270,B$301:AO$301)","v":{"$error":"#DIV/0!"}}]
[]
["RECOMENDACIONES, QUEJAS, SUGERENCIAS, FELICITACIONES:"]
[]
[]
[]
[]
[]
[]
["9 / ?"]
[null,null,null,null,null,null,"Encuesta de Satisfacción de Usuario"]
[]
[null,null,null,null,null,null,"Lógica Borrosa"]
[null,null,null,null,null,null,"Encuestas del Proceso: "]
[]
["NO. DE PREG.","EQUIVALE AL NÚMERO DE ENCUESTAS REALIZADAS ",null,null,null,null,null,null,null,null,null,null,null,null,null,null,null,null,null,null,null,null,null,null,null,null,null,null,null,null,null,null,null,null,null,null,null,null,null,null,null,"PRO- MEDIO Secc.","PRO- MEDIO Gral."]
[null,361,362,363,364,365,366,367,368,369,370,371,372,373,374,375,376,377,378,379,380,381,382,383,384,385,386,387,388,389,390,391,392,393,394,395,396,397,398,399,400]
[1,null,null,null,null,null,null,null,null,null,null,null,null,null,null,null,null,null,null,null,null,null,null,null,null,null,null,null,null,null,null,null,null,null,null,null,null,null,null,null,null,{"$f":"AVERAGE(B287:AO287)","v":{"$error":"#DIV/0!"}},{"$f":"AVERAGE(B$8:AO$8,B$39:AO$39,B$70:AO$70,B$101:AO$101,B$132:AO$132,B$163:AO$163,B$194:AO$194,B$225:AO$225,B$256:AO$256,B$287:AO$287)","v":{"$error":"#DIV/0!"}}]
[2,null,null,null,null,null,null,null,null,null,null,null,null,null,null,null,null,null,null,null,null,null,null,null,null,null,null,null,null,null,null,null,null,null,null,null,null,null,null,null,null,{"$f":"AVERAGE(B288:AO288)","v":{"$error":"#DIV/0!"}},{"$f":"AVERAGE(B$9:AO$9,B$40:AO$40,B$71:AO$71,B$102:AO$102,B$133:AO$133,B$164:AO$164,B$195:AO$195,B$226:AO$226,B$257:AO$257,B$288:AO$288)","v":{"$error":"#DIV/0!"}}]
[3,null,null,null,null,null,null,null,null,null,null,null,null,null,null,null,null,null,null,null,null,null,null,null,null,null,null,null,null,null,null,null,null,null,null,null,null,null,null,null,null,{"$error":"#DIV/0!"},{"$f":"AVERAGE(B$10:AO$10,B$41:AO$41,B$72:AO$72,B$103:AO$103,B$134:AO$134,B$165:AO$165,B$196:AO$196,B$227:AO$227,B$258:AO$258,B$289:AO$289)","v":{"$error":"#DIV/0!"}}]
[4,null,null,null,null,null,null,null,null,null,null,null,null,null,null,null,null,null,null,null,null,null,null,null,null,null,null,null,null,null,null,null,null,null,null,null,null,null,null,null,null,{"$error":"#DIV/0!"},{"$f":"AVERAGE(B$11:AO$11,B$42:AO$42,B$73:AO$73,B$104:AO$104,B$135:AO$135,B$166:AO$166,B$197:AO$197,B$228:AO$228,B$259:AO$259,B$290:AO$290)","v":{"$error":"#DIV/0!"}}]
[5,null,null,null,null,null,null,null,null,null,null,null,null,null,null,null,null,null,null,null,null,null,null,null,null,null,null,null,null,null,null,null,null,null,null,null,null,null,null,null,null,{"$error":"#DIV/0!"},{"$f":"AVERAGE(B$12:AO$12,B$43:AO$43,B$74:AO$74,B$105:AO$105,B$136:AO$136,B$167:AO$167,B$198:AO$198,B$229:AO$229,B$260:AO$260,B$291:AO$291)","v":{"$error":"#DIV/0!"}}]
[6,null,null,null,null,null,null,null,null,null,null,null,null,null,null,null,null,null,null,null,null,null,null,null,null,null,null,null,null,null,null,null,null,null,null,null,null,null,null,null,null,{"$error":"#DIV/0!"},{"$f":"AVERAGE(B$13:AO$13,B$44:AO$44,B$75:AO$75,B$106:AO$106,B$137:AO$137,B$168:AO$168,B$199:AO$199,B$230:AO$230,B$261:AO$261,B$292:AO$292)","v":{"$error":"#DIV/0!"}}]
[7,null,null,null,null,null,null,null,null,null,null,null,null,null,null,null,null,null,null,null,null,null,null,null,null,null,null,null,null,null,null,null,null,null,null,null,null,null,null,null,null,{"$error":"#DIV/0!"},{"$f":"AVERAGE(B$14:AO$14,B$45:AO$45,B$76:AO$76,B$107:AO$107,B$138:AO$138,B$169:AO$169,B$200:AO$200,B$231:AO$231,B$262:AO$262,B$293:AO$293)","v":{"$error":"#DIV/0!"}}]
[8,null,null,null,null,null,null,null,null,null,null,null,null,null,null,null,null,null,null,null,null,null,null,null,null,null,null,null,null,null,null,null,null,null,null,null,null,null,null,null,null,{"$error":"#DIV/0!"},{"$f":"AVERAGE(B$15:AO$15,B$46:AO$46,B$77:AO$77,B$108:AO$108,B$139:AO$139,B$170:AO$170,B$201:AO$201,B$232:AO$232,B$263:AO$263,B$294:AO$294)","v":{"$error":"#DIV/0!"}}]
[9,null,null,null,null,null,null,null,null,null,null,null,null,null,null,null,null,null,null,null,null,null,null,null,null,null,null,null,null,null,null,null,null,null,null,null,null,null,null,null,null,{"$error":"#DIV/0!"},{"$f":"AVERAGE(B$16:AO$16,B$47:AO$47,B$78:AO$78,B$109:AO$109,B$140:AO$140,B$171:AO$171,B$202:AO$202,B$233:AO$233,B$264:AO$264,B$295:AO$295)","v":{"$error":"#DIV/0!"}}]
[10,null,null,null,null,null,null,null,null,null,null,null,null,null,null,null,null,null,null,null,null,null,null,null,null,null,null,null,null,null,null,null,null,null,null,null,null,null,null,null,null,{"$error":"#DIV/0!"},{"$f":"AVERAGE(B$17:AO$17,B$48:AO$48,B$79:AO$79,B$110:AO$110,B$141:AO$141,B$172:AO$172,B$203:AO$203,B$234:AO$234,B$265:AO$265,B$296:AO$296)","v":{"$error":"#DIV/0!"}}]
[11,null,null,null,null,null,null,null,null,null,null,null,null,null,null,null,null,null,null,null,null,null,null,null,null,null,null,null,null,null,null,null,null,null,null,null,null,null,null,null,null,{"$error":"#DIV/0!"},{"$f":"AVERAGE(B$18:AO$18,B$49:AO$49,B$80:AO$80,B$111:AO$111,B$142:AO$142,B$173:AO$173,B$204:AO$204,B$235:AO$235,B$266:AO$266,B$297:AO$297)","v":{"$error":"#DIV/0!"}}]
[12,null,null,null,null,null,null,null,null,null,null,null,null,null,null,null,null,null,null,null,null,null,null,null,null,null,null,null,null,null,null,null,null,null,null,null,null,null,null,null,null,{"$error":"#DIV/0!"},{"$f":"AVERAGE(B$19:AO$19,B$50:AO$50,B$81:AO$81,B$112:AO$112,B$143:AO$143,B$174:AO$174,B$205:AO$205,B$236:AO$236,B$267:AO$267,B$298:AO$298)","v":{"$error":"#DIV/0!"}}]
[13,null,null,null,null,null,null,null,null,null,null,null,null,null,null,null,null,null,null,null,null,null,null,null,null,null,null,null,null,null,null,null,null,null,null,null,null,null,null,null,null,{"$error":"#DIV/0!"},{"$f":"AVERAGE(B$20:AO$20,B$51:AO$51,B$82:AO$82,B$113:AO$113,B$144:AO$144,B$175:AO$175,B$206:AO$206,B$237:AO$237,B$268:AO$268,B$299:AO$299)","v":{"$error":"#DIV/0!"}}]
[14,null,null,null,null,null,null,null,null,null,null,null,null,null,null,null,null,null,null,null,null,null,null,null,null,null,null,null,null,null,null,null,null,null,null,null,null,null,null,null,null,{"$error":"#DIV/0!"},{"$f":"AVERAGE(B$21:AO$21,B$52:AO$52,B$83:AO$83,B$114:AO$114,B$145:AO$145,B$176:AO$176,B$207:AO$207,B$238:AO$238,B$269:AO$269,B$300:AO$300)","v":{"$error":"#DIV/0!"}}]
[15,null,null,null,null,null,null,null,null,null,null,null,null,null,null,null,null,null,null,null,null,null,null,null,null,null,null,null,null,null,null,null,null,null,null,null,null,null,null,null,null,{"$error":"#DIV/0!"},{"$f":"AVERAGE(B$22:AO$22,B$53:AO$53,B$84:AO$84,B$115:AO$115,B$146:AO$146,B$177:AO$177,B$208:AO$208,B$239:AO$239,B$270:AO$270,B$301:AO$301)","v":{"$error":"#DIV/0!"}}]
[]
["RECOMENDACIONES, QUEJAS, SUGERENCIAS, FELICITACIONES:"]
[]
[]
[]
[]
[]
[]
["10 / 10"]

{"sheet":"VALORES","index":1,"n_rows":47,"n_cols":14,"rows_kept":47,"cut":false,"hidden":false,"merged":[[13,1,15,1],[7,1,12,1],[1,12,3,14],[41,1,41,8],[2,2,2,7],[0,2,1,7],[37,7,38,7],[25,7,26,7],[34,7,35,7],[28,7,29,7],[31,7,32,7],[19,1,21,2],[23,7,23,15],[17,11,18,11],[0,1,4,1],[11,13,11,14],[12,13,12,14],[13,13,13,14],[14,13,14,14],[15,13,15,14],[5,2,5,6],[7,3,7,6],[15,3,15,6],[6,3,6,6],[8,3,8,6],[12,3,12,6],[10,3,10,6],[11,3,11,6],[9,3,9,6],[14,3,14,6],[13,3,13,6],[5,12,5,15],[10,13,10,14],[9,13,9,14],[8,13,8,14],[7,13,7,14],[6,13,6,14],[47,1,47,5],[17,13,18,14],[16,1,16,6],[16,7,16,11],[17,1,18,1],[17,2,18,2],[17,6,18,6],[17,7,18,7],[45,14,48,14],[41,14,44,14],[17,3,18,5],[17,8,18,8],[17,9,18,10],[19,3,21,5],[40,1,40,8]]}
[null,null,"Lógica Borrosa"]
[]
[null,null,"Nombre del Proceso: Prácticas de laboratorio del Nivel Medio Superior"]
[null,null,"PLANTEL: "]
[]
[null,"FACTORES","PREGUNTAS",null,null,null,null,"VALOR OBJETIVO","FACTOR DE PONDERACIÓN","VALOR REAL","ÍNDICE DE CALIDAD","ÍNDICE PONDERADO","INDICACIÓN(ES)"]
[null,"SERVICIO",1,"¿Se dio a conocer en tiempo y forma el manual de prácticas y lineamientos del laboratorio?           ",null,null,null,9,0.05,{"$f":"RESULTADOS!AQ8","v":{"$error":"#DIV/0!"}},{"$f":"IF(J7<H7,((J7/H7)*100),100)","v":{"$error":"#DIV/0!"}},{"$f":"K7*I7","v":{"$error":"#DIV/0!"}},null,{"$f":"IF(K7<70,\"Tomar acciones Inmediatas\",IF(AND(K7>=70,K7<80),\"Acción Correctiva\",IF(AND(K7>=80,K7<=95),\"Mejora Continua\",\"\")))","v":{"$error":"#DIV/0!"}}]
[null,"INFRAESTRUCTURA",2,"¿El inmueble es acorde en espacio para atender y dar servicio a los usuarios?  ",null,null,null,8,0.05,{"$f":"RESULTADOS!AQ9","v":{"$error":"#DIV/0!"}},{"$error":"#DIV/0!"},{"$f":"K8*I8","v":{"$error":"#DIV/0!"}},null,{"$f":"IF(K8<70,\"Tomar acciones Inmediatas\",IF(AND(K8>=70,K8<80),\"Acción Correctiva\",IF(AND(K8>=80,K8<=95),\"Mejora Continua\",\"\")))","v":{"$error":"#DIV/0!"}}]
[null,null,3,"¿Las instalaciones, iluminación, ventilación y limpieza en que condiciones se encuentran? ",null,null,null,8,0.1,{"$f":"RESULTADOS!AQ10","v":{"$error":"#DIV/0!"}},{"$error":"#DIV/0!"},{"$f":"K9*I9","v":{"$error":"#DIV/0!"}},null,{"$f":"IF(K9<70,\"Tomar acciones Inmediatas\",IF(AND(K9>=70,K9<80),\"Acción Correctiva\",IF(AND(K9>=80,K9<=95),\"Mejora Continua\",\"\")))","v":{"$error":"#DIV/0!"}}]
[null,null,4," ¿El laboratorio cumple con los requisitos de seguridad (señaletica, regadera de emergencia , lavaojos, extintor)? ",null,null,null,9,0.1,{"$f":"RESULTADOS!AQ11","v":{"$error":"#DIV/0!"}},{"$error":"#DIV/0!"},{"$error":"#DIV/0!"},null,{"$error":"#DIV/0!"}]
[null,null,5,"¿Cuenta con los servicios de: agua,gas y electricidad? ",null,null,null,10,0.15,{"$f":"RESULTADOS!AQ12","v":{"$error":"#DIV/0!"}},{"$error":"#DIV/0!"},{"$error":"#DIV/0!"},null,{"$error":"#DIV/0!"}]
[null,null,6,"¿Cómo consideras las condiciones del mobiliario del laboratorio? ",null,null,null,7,0.05,{"$f":"RESULTADOS!AQ13","v":{"$error":"#DIV/0!"}},{"$error":"#DIV/0!"},{"$error":"#DIV/0!"},null,{"$error":"#DIV/0!"}]
[null,null,7,"¿Los equipos, materiales y reactivos son los requeridos  para realizar las prácticas?",null,null,null,8,0.2,{"$f":"RESULTADOS!AQ14","v":{"$error":"#DIV/0!"}},{"$error":"#DIV/0!"},{"$error":"#DIV/0!"},null,{"$error":"#DIV/0!"}]
[null,"SERVICIO",8,"¿Se cumplieron los objetivos de las prácticas?",null,null,null,7,0.15,{"$f":"RESULTADOS!AQ15","v":{"$error":"#DIV/0!"}},{"$error":"#DIV/0!"},{"$error":"#DIV/0!"},null,{"$error":"#DIV/0!"}]
[null,null,9,"¿ Como fue el desempeño del docente durante la práctica?  ",null,null,null,8,0.1,{"$f":"RESULTADOS!AQ16","v":{"$error":"#DIV/0!"}},{"$error":"#DIV/0!"},{"$error":"#DIV/0!"},null,{"$error":"#DIV/0!"}]
[null,null,10,"¿El responsable del laboratorio te brindo el apoyo para el desarrollo de la práctica?  ",null,null,null,10,0.05,{"$f":"RESULTADOS!AQ17","v":{"$error":"#DIV/0!"}},{"$error":"#DIV/0!"},{"$error":"#DIV/0!"},null,{"$error":"#DIV/0!"}]
[]
[null,"META",92,{"$f":"IF(L18<C18,\"Realizar\",\"Llevar a cabo\")","v":{"$error":"#DIV/0!"}},null,null,"Semáforo de evaluación",{"$f":"CONCATENATE(SUM(I7:I16), \" =\")","v":"1 ="},{"$f":"SUM(I7:I16)","v":1.0000000000000002},"Indicador Total",null,{"$f":"SUM(L7:L16)","v":{"$error":"#DIV/0!"}},null,{"$f":"IF(L18>=90,\"Muy Satisfecho\", IF(L18>=70,\"Satisfecho\",\"Insatisfecho\"))","v":{"$error":"#DIV/0!"}}]
[]
[null,{"$f":"IF(C18<=L18,\"CUMPLIÓ META\", \"NO CUMPLIÓ LA META\")","v":{"$error":"#DIV/0!"}},null,{"$f":"IF(L18<C18,\"Acción Correctiva\",\"Mejora Continua\")","v":{"$error":"#DIV/0!"}},null,null,"n Muy Satisfecho(>=90)"]
[null,null,null,null,null,null,"n Satisfecho >=70 Y <90"]
[null,null,null,null,null,null,"n Insatisfecho  ( 0 - 69.99 )"]
[]
[null,null,null,null,null,null,null,{"$f":"IF(L18<C18,\"Descripción de las Acciones Correctivas\",\"Descripción de las Acciones de Mejora Continua\")","v":{"$error":"#DIV/0!"}}]
[]
[null,null,null,null,null,null,null,{"$f":"IF(L18<C18,\"Acción Correctiva\",\"Mejora Continua\")","v":{"$error":"#DIV/0!"}}]
[]
[]
[null,null,null,null,null,null,null,{"$f":"IF(L18<C18,\"Acción Correctiva\",\"Mejora Continua\")","v":{"$error":"#DIV/0!"}}]
[]
[]
[null,null,null,null,null,null,null,{"$f":"IF(L18<C18,\"Acción Correctiva\",\"Mejora Continua\")","v":{"$error":"#DIV/0!"}}]
[]
[]
[null,null,null,null,null,null,null,{"$f":"IF(L18<C18,\"Acción Correctiva\",\"Mejora Continua\")","v":{"$error":"#DIV/0!"}}]
[]
[]
[null,null,null,null,null,null,null,{"$f":"IF(L18<C18,\"Acción Correctiva\",\"Mejora Continua\")","v":{"$error":"#DIV/0!"}}]
[]
[]
[]
[null,"Calculo del tamaño de la muestra"]
[null,null,"Z","p","q","N","E"]
[null,"Muestra",1.96,0.5,0.5,40,0.05]
[null,{"$f":"(((C44*C44)*D44*E44*F44)/(((F44-1)*(G44*G44))+((C44*C44)*D44*E44)))","v":36.313451176859822}]
[null,"Valor de Z",1.1499999999999999,1.28,1.44,1.65,1.96,2.2400000000000002,2.58]
[null,"Nivel de confianza",0.75,0.8,0.85,0.9,0.95,0.97499999999999998,0.99]